{"text_format":"1","workbook":"xlsx","n_sheets":59,"sheets":["modList07","modList05","modProv","Инструкция","Лог обновления","Титульный","Территории","Дифференциация","Форма 1.0.1 | Форма 3.5.1","Форма 3.5.1","Форма 1.0.1 | Форма 3.5.2","Форма 3.5.2","Форма 1.0.1 | Форма 3.6","Форма 3.6","Форма 1.0.1 | Форма 3.7","Форма 3.7","Форма 1.0.2","Сведения об изменении","Комментарии","Проверка","modReestr","AllSheetsInThisWorkbook","modCheckCyan","modInfo","TEHSHEET","modfrmSelectData","modList06","modList01","modList08","et_union_hor","et_union_vert","modList00","modList02","modList03","modList04","modList09","modHTTP","modfrmRegion","MR_LIST","REESTR_VT","REESTR_VED","modfrmReestrObj","DataOrg","modfrmReestr","modUpdTemplMain","REESTR_ORG","modClassifierValidate","modHyp","modfrmDateChoose","modComm","modThisWorkbook","REESTR_MO","REESTR_MO_FILTER","modfrmReestrMR","modServiceModule","modfrmCheckUpdates","REESTR_DS","REESTR_CHS","REESTR_LINK"],"not_rendered":{"charts":0,"images":26,"macros":1,"external_links":0,"defined_names":261,"comments":9,"pivot_tables":0},"unopened":[],"bounds":{"document_bytes":16777216,"sheet_cells":100000,"rows_first":2000,"rows_last":500,"rows_between":2000,"halvings":0,"cell_chars":16384,"cell_head_chars":4096},"cells_cut":0,"cells_raw":0,"read":"whole","date_system":"1900"}

{"sheet":"modList07","index":0,"n_rows":0,"n_cols":0,"rows_kept":0,"cut":false,"hidden":true,"merged":[]}

{"sheet":"modList05","index":1,"n_rows":0,"n_cols":0,"rows_kept":0,"cut":false,"hidden":true,"merged":[]}

{"sheet":"modProv","index":2,"n_rows":0,"n_cols":0,"rows_kept":0,"cut":false,"hidden":true,"merged":[]}

{"sheet":"Инструкция","index":3,"n_rows":83,"n_cols":27,"rows_kept":83,"cut":false,"hidden":false,"merged":[[34,4,38,23],[22,15,22,22],[21,5,21,12],[1,1,1,6],[2,1,2,2],[4,1,4,24],[6,4,18,23],[20,5,20,12],[20,15,20,23],[21,15,21,23],[39,4,39,23],[40,4,44,23],[45,4,56,23],[80,5,80,18],[58,4,58,6],[58,7,58,23],[59,4,59,6],[71,5,71,23],[57,4,57,20],[70,4,70,19],[82,5,82,23],[60,7,60,23],[78,4,78,23],[72,5,72,23],[73,5,73,23],[74,4,74,23],[75,4,75,23],[76,4,76,23],[77,4,77,23],[69,4,69,19]]}
[null,null,null,null,null,null,null,null,null,null,null,null,null,null,null,null,null,null,null,null,null,null,null,null,null,null," (требуется обновление)"]
[null,{"$f":"\"Код отчёта: \" & GetCode()","v":"Код отчёта: FAS.JKH.OPEN.INFO.BALANCE.VO"}]
[null,{"$f":"\"Версия \" & GetVersion()","v":"Версия 1.0.6"}]
[]
[null,{"$f":"Титульный!E5","v":"Информация о показателях финансово-хозяйственной деятельности, об основных потребительских характеристиках регулируемых товаров и услуг, об инвестиционных программах регулируемой организации в сфере водоотведения и (или) очистки сточных вод"}]
[]
[null,null,null,null,"• На рабочем месте должен быть установлен MS Office 2007 SP3, 2010, 2013, 2016 с полной версией MS Excel\n\n• Макросы во время работы должны быть включены (!)\n\n• Для корректной работы отчёта требуется выбрать низкий уровень безопасности\n(В меню MS Excel 2007/2010/2013/2016: Параметры Excel | Центр управления безопасностью | Параметры центра управления безопасностью | Параметры макросов | Включить все макросы | ОК)\n\n• Если Вы работаете в табличном процессоре MS Excel 2007 и выше, то можете использовать для работы формат XLSB (Двоичная книга Excel). При работе в формате XLSB заметно быстрее происходит сохранение файла, а также уменьшается размер по сравнению с форматами XLS и XLSM\n\n• Не рекомендуется снимать защиту с листов и каким-либо образом модифицировать защищаемые формулы и расчётные поля, в противном случае, отчёт будет отклонён системой\n\n• При сохранении не следует выбирать формат XLSX (Книга Excel), так как в указанном формате макросы, необходимые для работы отчёта, безвозвратно удаляются"]
[]
[]
[]
[]
[]
[]
[]
[]
[]
[]
[]
[]
[]
[null,null,null,null,"A"," - не обязательные для заполнения",null,null,null,null,null,null,null,null,"A"," - с формулами и константами"]
[null,null,null,null,"A"," - обязательные для заполнения",null,null,null,null,null,null,null,null,"A"," - с выбором значений до двойному клику"]
[]
[]
[]
[]
[]
[]
[]
[]
[]
[]
[]
[]
[null,null,null,null,"Если в предложенном Вам списке необходимая организация, МР/МО отсутствуют, обновите реестры с помощью кнопок\n\nВ результате синхронизации с базой данных список организаций (МР/МО) будет заменён актуальным (механизм синхронизации требует подключения к сети Интернет и основан на использовании протокола HTTPS (TCP порт 443))\n\nЕсли после обновления Вам не удалось найти необходимую организацию в списке, обратитесь к ответственному за поддержание реестра Вашего региона."]
[]
[]
[]
[]
[]
[]
[]
[]
[]
[]
[null,null,null,null,"• При сохранении шаблона осуществляется проверка корректности данных, в том числе на наличие значений в ячейках, обязательных для заполнения\n\n• Если какая-то ячейка не удовлетворяет условию проверки, на лист «Проверка» добавляется гиперссылка на данную ячейку и указывается причина ошибки\n\n• В колонке «Статус» для каждого сообщения возможны 2 значения: ошибка и предупреждение\n\n• При наличии сообщений со статусом «Ошибка» шаблон будет отклонён системой и не будет загружен в хранилище данных, сообщения со статусом «Предупреждение» носят информационный характер, и такой шаблон будет принят системой"]
[]
[]
[]
[]
[]
[]
[]
[]
[]
[]
[]
[null,null,null,null,"Обратиться за помощью в службу технической поддержки"]
[]
[]
[]
[]
[]
[]
[]
[]
[]
[]
[]
[null,null,null,null,"Инструкция по загрузке сопроводительных материалов"]
[null,null,null,null,"Инструкция по работе с отчетной формой"]
[]
[]
[]
[]
[]
[]
[]
[null,null,null,null,"При наличии подключения к Интернет, можно автоматически проверять наличие доступных обновлений. Выберите способ оповещения о наличии обновлений для отчёта:"]
[]
[null,null,null,null,null,"проверять доступные обновления (рекомендуется)",null,null,null,null,null,null,null,null,null,null,null,null,null,null,null,null,null,null,null,null,"y"]
[]
[null,null,null,null,null,"никогда не проверять наличие обновлений (не рекомендуется)"]

{"sheet":"Лог обновления","index":4,"n_rows":24,"n_cols":3,"rows_kept":24,"cut":false,"hidden":true,"merged":[]}
["Дата/Время","Сообщение","Статус"]
["2021-04-27T15:02:08","Проверка доступных обновлений...","Информация"]
["2021-04-27T15:02:10","Нет доступных обновлений для отчёта с кодом FAS.JKH.OPEN.INFO.BALANCE.VO!","Информация"]
["2021-04-27T15:02:17","Проверка доступных обновлений...","Информация"]
["2021-04-27T15:02:18","Нет доступных обновлений для отчёта с кодом FAS.JKH.OPEN.INFO.BALANCE.VO!","Информация"]
["2021-04-27T15:02:28","Проверка доступных обновлений...","Информация"]
["2021-04-27T15:02:29","Нет доступных обновлений для отчёта с кодом FAS.JKH.OPEN.INFO.BALANCE.VO!","Информация"]
["2021-04-27T15:03:08","Проверка доступных обновлений...","Информация"]
["2021-04-27T15:03:09","Нет доступных обновлений для отчёта с кодом FAS.JKH.OPEN.INFO.BALANCE.VO!","Информация"]
["2021-04-27T16:45:56","Проверка доступных обновлений...","Информация"]
["2021-04-27T16:45:58","Нет доступных обновлений для отчёта с кодом FAS.JKH.OPEN.INFO.BALANCE.VO!","Информация"]
["2021-04-28T11:32:00","Проверка доступных обновлений...","Информация"]
["2021-04-28T11:32:02","Нет доступных обновлений для отчёта с кодом FAS.JKH.OPEN.INFO.BALANCE.VO!","Информация"]
["2021-04-28T16:11:36","Проверка доступных обновлений...","Информация"]
["2021-04-28T16:11:38","Нет доступных обновлений для отчёта с кодом FAS.JKH.OPEN.INFO.BALANCE.VO!","Информация"]
["2021-04-29T08:55:55","Проверка доступных обновлений...","Информация"]
["2021-04-29T08:55:58","Нет доступных обновлений для отчёта с кодом FAS.JKH.OPEN.INFO.BALANCE.VO!","Информация"]
["2021-04-29T08:59:51","Проверка доступных обновлений...","Информация"]
["2021-04-29T08:59:53","Нет доступных обновлений для отчёта с кодом FAS.JKH.OPEN.INFO.BALANCE.VO!","Информация"]
["2021-04-30T08:08:39","Проверка доступных обновлений...","Информация"]
["2021-04-30T08:08:41","Нет доступных обновлений для отчёта с кодом FAS.JKH.OPEN.INFO.BALANCE.VO!","Информация"]
["2021-04-30T08:18:50","Проверка доступных обновлений...","Информация"]
["2021-04-30T08:18:52","Нет доступных обновлений для отчёта с кодом FAS.JKH.OPEN.INFO.BALANCE.VO!","Информация"]
["2021-04-30T09:45:38","Проверка доступных обновлений...","Информация"]

{"sheet":"Титульный","index":5,"n_rows":47,"n_cols":6,"rows_kept":47,"cut":false,"hidden":false,"merged":[[4,4,4,5]]}
[null,null,null,null,null,26372410]
[]
[]
[null,null,null,null,null,{"$f":"version","v":"Версия 1.0.6"}]
[null,null,null,null,"Информация о показателях финансово-хозяйственной деятельности, об основных потребительских характеристиках регулируемых товаров и услуг, об инвестиционных программах регулируемой организации в сфере водоотведения и (или) очистки сточных вод"]
[]
[null,null,null,null,"Субъект РФ","Иркутская область"]
[]
[null,null,null,null,"Публикация2","На сайте регулирующего органа"]
[]
[null,null,null,null,"Отсутствует Интернет в границах территории МО, где организация осуществляет регулируемые виды деятельности","нет"]
[]
[null,null,null,null,"Тип отчета","первичное раскрытие информации"]
[null,null,null,null,"Дата внесения изменений в информацию, подлежащую раскрытию","27.04.2021"]
[]
[null,null,null,null,"Применяется дифференциация тарифа по централизованным системам водоотведения?"]
[null,null,null,null,"Информация по скольким централизованным системам водоотведения будет заполнена в шаблоне?"]
[]
[]
[null,null,2020,null,"Отчётный период (год)",2020]
[]
[]
[null,null,null,null,"Является ли данное юридическое лицо подразделением (филиалом) другой организации","нет"]
[]
[]
[null,null,null,null,"Наименование организации","МУП \"Водоканал-Сервис\""]
[null,null,null,null,"Наименование филиала"]
[null,null,null,null,"ИНН","3814007427"]
[null,null,null,null,"КПП","381401001"]
[null,null,null,null,"Вид деятельности"]
[]
[null,null,null,null,"Регулируемая организация осуществляет сдачу годового бухгалтерского баланса в налоговые органы","да"]
[null,null,null,null,"Дата направления годового бухгалтерского баланса в налоговые органы","30.03.2021"]
[]
[null,null,null,null,"Превышает ли выручка от регулируемой деятельности 80% совокупной выручки за отчетный год","да"]
[]
[null,null,null,null,"Организация выполняет инвестиционную программу","нет"]
[null,null,null,null,"Дифференциация по территориям и системам коммунальной инфраструктуры применяется для инвестиционных программ","нет"]
[]
[null,null,null,null,"Почтовый адрес регулируемой организации","666304, Саянск-4, промышленно-коммунальная зона, проезд 2, д. 15, а/я 380"]
[null,null,null,null,"Фамилия, имя, отчество руководителя","Еременко Сергей Константинович"]
[]
[null,null,null,null,null,"Ответственный за составление формы"]
[null,null,null,null,"Фамилия, имя, отчество","Кононенко Анна Александровна"]
[null,null,null,null,"Должность","начальник ПЭО"]
[null,null,null,null,"(код) номер телефона","8 39553 51120"]
[null,null,null,null,"e-mail","МУП В-С предприятие <sayanskvodokanal@mail.ru>"]

{"sheet":"Территории","index":6,"n_rows":17,"n_cols":18,"rows_kept":17,"cut":false,"hidden":false,"merged":[[12,7,14,7],[11,2,15,2],[11,3,15,3],[11,4,15,4],[12,5,14,5],[12,6,14,6],[8,5,8,6],[8,8,8,9],[9,5,9,6],[9,8,9,9],[3,3,3,7],[5,3,5,4],[5,5,5,6],[7,3,7,4],[7,5,7,7],[7,8,7,11],[6,4,6,11]]}
[null,null,null,null,null,null,null,null,null,null,"МО","ОКТМО","МР"]
[]
[]
[null,null,null,"Перечень муниципальных районов и муниципальных образований (территорий оказания услуг)"]
[]
[null,null,null,null,null,"да"]
[]
[null,null,null,"Территория оказания услуг",null,"Муниципальный район",null,null,"Муниципальное образование"]
[null,null,null,"№ п/п","Наименование","№ п/п",null,"Наименование","№ п/п",null,"Наименование","ОКТМО"]
[null,null,null,"1","2","3",null,"4","5",null,"6","7"]
[null,null,null,0,null,"",null,null,"",null,null,null,"размерженный МР",null,null,"флаг используемости территории на листе Перечень тарифов","копия территорий","МР (ОКТМО)"]
[null,"auto",null,1,"Город Саянск, Город Саянск (25726000);","",0,null,"","0",null,null,{"$f":"mergeValue(H12)","v":0},null,null,{"$f":"IF(ISERROR(MATCH(MID(Q12,1,250),MID(note_ter,1,250),0)),\"n\",\"y\")","v":"n"},"Город Саянск, Город Саянск (25726000);",{"$f":"K12&\"(\"&L12&\")\"","v":"()"}]
[null,"auto",null,null,null,"",1,"Город Саянск","","0",null,null,{"$f":"mergeValue(H13)","v":"Город Саянск"},null,null,null,null,{"$f":"K13&\"(\"&L13&\")\"","v":"()"}]
[null,"auto",null,null,null,null,null,null,"",1,"Город Саянск","25726000",{"$f":"mergeValue(H14)","v":"Город Саянск"},null,null,null,null,{"$f":"K14&\" (\"&L14&\")\"","v":"Город Саянск (25726000)"}]
[null,null,null,null,null,null,null,null,"",null,""]
[null,null,null,null,null,"","","",""]
[null,"man",null,null,"","",null,null,"",null,null,null,null,null,null,null,"Добавить территорию оказания услуг"]

{"sheet":"Дифференциация","index":7,"n_rows":26,"n_cols":26,"rows_kept":26,"cut":false,"hidden":false,"merged":[[21,9,22,9],[17,9,17,12],[19,6,19,7],[19,10,19,11],[18,10,18,11],[18,6,18,7],[24,2,25,2],[11,1,11,3],[12,1,12,3],[21,4,23,4],[21,5,23,5],[21,3,23,3],[17,5,17,8],[21,6,22,6],[21,7,22,7],[21,8,22,8],[17,0,18,0],[17,3,17,4],[3,3,3,8],[4,3,4,8],[7,4,7,5],[8,1,8,3],[5,0,6,5],[7,1,7,3],[8,4,8,5],[9,1,9,3],[9,4,9,5],[13,1,13,3],[10,4,10,5],[10,1,10,3]]}
[]
[]
[]
[null,null,null,{"$f":"Титульный!E5","v":"Информация о показателях финансово-хозяйственной деятельности, об основных потребительских характеристиках регулируемых товаров и услуг, об инвестиционных программах регулируемой организации в сфере водоотведения и (или) очистки сточных вод"}]
[null,null,null,{"$f":"IF(org=0,\"Не определено\",org)","v":"МУП \"Водоканал-Сервис\""}]
[]
[]
[]
[]
[]
[]
[]
[]
[]
[]
[]
[]
[null,null,null,"Вид деятельности",null,"Дифференциация по территориям оказания услуг",null,null,null,"Дифференциация по централизованным системам коммунальной инфраструктуры"]
[null,null,null,"№ п/п","Наименование","да/нет","№ п/п",null,"Наименование","да/нет","№ п/п",null,"Наименование"]
[null,null,null,"1","2","3","4",null,"5","6","7",null,"8"]
[]
[null,null,null,"1","Водоотведение","нет",null,1,null,"нет","","1","",null,null,null,null,null,null,null,null,null,null,4189714,"a",1705000]
[null,null,null,null,null,null,null,null,null,null,"",null,""]
[null,null,null,null,null,null,null,null,"",null,""]
[null,null,null,null,"",null,null,null,null,null,""]
[null,null,null,null,null,null,null,null,null,null,""]

{"sheet":"Форма 1.0.1 | Форма 3.5.1","index":8,"n_rows":20,"n_cols":7,"rows_kept":20,"cut":false,"hidden":false,"merged":[[19,4,19,5],[4,3,4,6],[5,3,5,6],[7,3,7,6],[8,3,8,5],[8,6,9,6]]}
[null,null,null,null,null,null,4]
[]
[]
[]
[null,null,null,"Форма 1.0.1 Основные параметры раскрываемой информации 1"]
[null,null,null,{"$f":"IF(org=0,\"Не определено\",org)","v":"МУП \"Водоканал-Сервис\""}]
[]
[null,null,22,"Форма 1.0.1"]
[null,null,null,"Параметры формы",null,null,"Описание параметров формы"]
["\\",null,null,"№ п/п",null,"Информация"]
[null,null,null,"1",2,3,4]
[null,null,null,1,"Дата заполнения/внесения изменений",{"$f":"IF(form_up_date=\"\",\"\",form_up_date)","v":"27.04.2021"},"Указывается календарная дата первичного заполнения или внесения изменений в форму в виде «ДД.ММ.ГГГГ»."]
[null,null,null,"2.1","Наименование централизованной системы коммунальной инфраструктуры","наименование отсутствует","Указывается наименование централизованной системы холодного водоснабжения/горячего водоснабжения/водоотведения/теплоснабжения, к которой относится размещаемая информация.\nВ случае наличия нескольких централизованных систем коммунальной инфраструктуры, информация по каждой из них указывается в отдельной строке. "]
[null,null,null,"3.1","Наименование регулируемого вида деятельности","Водоотведение","Указывается наименование вида регулируемой деятельности."]
[null,null,null,"4.1","Территория оказания услуги по регулируемому виду деятельности","x"]
[null,null,null,{"$f":"D15&\".1\"","v":"4.1.1"},"Субъект РФ",{"$f":"IF(region_name=\"\",\"\",region_name)","v":"Иркутская область"},"Указывается наименование субъекта Российской Федерации"]
[null,null,null,"4.1.1.1","муниципальный район","Город Саянск","Указывается наименование муниципального района, на территории которого организация оказывает услуги по регулируемому виду деятельности."]
[null,null,null,"4.1.1.1.1","муниципальное образование","Город Саянск (25726000)","Указывается наименование и код муниципального района, муниципального образования в соответствии с Общероссийским классификатором территорий муниципальных образований (далее - ОКТМО), входящего в муниципальный район, на территории которого организация оказывает услуги по регулируемому виду деятельности.\nВ случае оказания услуг по регулируемому виду деятельности на территории нескольких муниципальных районов (муниципальных образований) данные по каждому их них указываются в отдельной строке."]
[]
[null,null,null,null,"  1 Информация по данной форме публикуется при раскрытии информации по каждой из форм."]

{"sheet":"Форма 3.5.1","index":9,"n_rows":63,"n_cols":16,"rows_kept":63,"cut":false,"hidden":false,"merged":[[40,4,41,4],[40,5,41,5],[8,3,8,5],[11,7,13,7],[58,4,58,6],[12,4,13,4],[12,3,13,3],[12,5,13,5],[11,3,11,6],[35,3,36,3],[35,5,36,5],[37,3,38,3],[37,5,38,5],[40,3,41,3]]}
[null,null,null,null,null,null,4]
[null,null,null,null,null,"тыс. руб.",null,"Указываются прочие расходы, которые подлежат отнесению на регулируемые виды деятельности в соответствии с законодательством в сфере водоснабжения и водоотведения."]
[]
[null,null,null,null,null,"%",null,"Указывается показатель использования по производственному объекту как процент объем перекачки по отношению к пиковому дню отчетного года."]
[]
[]
[null,null,null,null,null,null,null,4]
[]
[null,null,null,"Информация об основных показателях финансово-хозяйственной деятельности регулируемой организации, включая структуру основных производственных затрат (в части регулируемого вида деятельности)"]
[]
[null,null,null,null,null,null,22]
[null,null,null,"Параметры формы",null,null,null,"Описание параметров формы"]
[null,null,null,"№ п/п","Наименование параметра","Единица измерения","Вид деятельности:\r\n  - Водоотведение\r\n\r\nТерритория оказания услуг:\r\n  - без дифференциации\r\n\r\nЦентрализованная система водоотведения:\r\n  - наименование отсутствует"]
[null,null,null,null,null,null,"Информация"]
[null,null,null,"1","2","3",{"$f":"G1","v":4}]
[null,null,null,"1","Дата сдачи годового бухгалтерского баланса в налоговые органы","х",{"$f":"IF(buhg_flag=\"да\",IF(dateBuhg=\"\",\"Не указана\",dateBuhg),\"Не осуществлялась\")","v":"30.03.2021"},"Указывается календарная дата сдачи бухгалтерского баланса в налоговые органы в случае, если организация сдает бухгалтерский баланс в налоговые органы по виду регулируемой деятельности, в отношении которого размещаются данные. Дата указывается в виде «ДД.ММ.ГГГГ»."]
[null,null,null,"2","Выручка от регулируемой деятельности по виду деятельности","тыс. руб.",54615,"Указывается выручка от регулируемой деятельности по виду деятельности в сфере водоотведения."]
[null,null,null,"3","Себестоимость производимых товаров (оказываемых услуг) по регулируемому виду деятельности, включая:","тыс. руб.",{"$f":"SUM(G19:G20,G23:G30,G33,G36,G38,G40)","v":63391},"Указывается суммарная себестоимость производимых товаров."]
[null,null,null,"3.1","Расходы на оплату услуг по приему, транспортировке и очистке сточных вод другими организациями","тыс. руб.",32057]
[null,null,null,"3.2","Расходы на покупаемую электрическую энергию (мощность), используемую в технологическом процессе:","тыс. руб.",1007.55]
[null,null,null,"3.2.1","Средневзвешенная стоимость 1 кВт.ч (с учетом мощности)","руб.",{"$f":"G20/G22","v":2.9080439864923364}]
[null,null,null,"3.2.2","Объем приобретаемой электрической энергии","тыс. кВт·ч",346.47]
[null,null,null,"3.3","Расходы на хим. реагенты, используемые в технологическом процессе","тыс. руб.",0]
[null,null,null,"3.4","Расходы на оплату труда основного производственного персонала","тыс. руб.",1788]
[null,null,null,"3.5","Отчисления на социальные нужды основного производственного персонала","тыс. руб.",538]
[null,null,null,"3.6","Расходы на оплату труда административно-управленческого персонала","тыс. руб.",3302]
[null,null,null,"3.7","Отчисления на социальные нужды административно-управленческого персонала","тыс. руб.",994]
[null,null,null,"3.8","Расходы на амортизацию основных производственных средств","тыс. руб.",11248]
[null,null,null,"3.9","Расходы на аренду имущества, используемого для осуществления регулируемого вида деятельности","тыс. руб.",{"$f":"10+28","v":38}]
[null,null,null,"3.10","Общепроизводственные расходы, в том числе:","тыс. руб.",{"$f":"G31+G32","v":798},"Указывается общая сумма общепроизводственных расходов."]
[null,null,null,"3.10.1","Расходы на текущий ремонт","тыс. руб.",{"$f":"(429+369)*60/100","v":478.8},"Указываются расходы на текущий ремонт, отнесенные к общепроизводственным расходам."]
[null,null,null,"3.10.2","Расходы на капитальный ремонт","тыс. руб.",{"$f":"(429+369)*40/100","v":319.2},"Указываются расходы на капитальный ремонт, отнесенные к общепроизводственным расходам"]
[null,null,null,"3.11","Общехозяйственные расходы, в том числе:","тыс. руб.",{"$f":"G34+G35","v":92},"Указывается общая сумма общехозяйственных расходов."]
[null,null,null,"3.11.1","Расходы на текущий ремонт","тыс. руб.",{"$f":"(85+7)*60/100","v":55.2},"Указываются расходы на текущий ремонт, отнесенные к общехозяйственным расходам."]
[null,null,null,"3.11.2","Расходы на капитальный ремонт","тыс. руб.",{"$f":"(85+7)*40/100","v":36.799999999999997},"Указываются расходы на капитальный ремонт, отнесенные к общехозяйственным расходам."]
[null,null,null,"3.12","Расходы на капитальный и текущий ремонт основных производственных средств","тыс. руб.",0]
[null,null,null,null,"Информация об объемах товаров и услуг, их стоимости и способах приобретения у тех организаций, сумма оплаты услуг которых превышает 20 процентов суммы расходов по указанной статье расходов",null,"отсутствует",null,null,null,{"$f":"nerr(MATCH(\"есть\",List01_flag_index_1,0))","v":0}]
[null,null,null,"3.13","Расходы на услуги производственного характера, оказываемые по договорам с организациями на проведение регламентных работ в рамках технологического процесса","тыс. руб.",{"$f":"63391-51862.55","v":11528.449999999997}]
[null,null,null,null,"Информация об объемах товаров и услуг, их стоимости и способах приобретения у тех организаций, сумма оплаты услуг которых превышает 20 процентов суммы расходов по указанной статье расходов",null,"отсутствует",null,null,null,{"$f":"nerr(MATCH(\"есть\",List01_flag_index_2,0))","v":0}]
[null,null,null,"3.16","Прочие расходы, которые подлежат отнесению на регулируемые виды деятельности, в том числе:","тыс. руб.",{"$f":"SUM(G41:G43)","v":0},"Указывается общая сумма прочих расходов, которые подлежат отнесению на регулируемые виды деятельности в соответствии с законодательством в сфере водоснабжения и водоотведения."]
[null,null,null,"3.16.0"]
[null,null,null,null,null,null,null,null,null,null,null,null,null,null,null,"SUM_CALC"]
[null,null,null,null,"Добавить прочие расходы",null,null,"В случае наличия нескольких видов прочих расходов информация указывается в отдельных строках."]
[null,null,null,"4","Чистая прибыль, полученная от регулируемого вида деятельности, в том числе:","тыс. руб.",0,"Указывается общая сумма чистой прибыли, полученной от регулируемого вида деятельности."]
[null,null,null,"4.1","Размер расходования чистой прибыли на финансирование мероприятий, предусмотренных инвестиционной программой регулируемой организации","тыс. руб.",0]
[null,null,null,"5","Изменение стоимости основных фондов, в том числе:","тыс. руб.",{"$f":"G47","v":3818},"Указывается общее изменение стоимости основных фондов."]
[null,null,null,"5.1","Изменение стоимости основных фондов за счет их ввода в эксплуатацию (вывода из эксплуатации)","тыс. руб.",{"$f":"G48-G49","v":3818},"Указываются общее изменение стоимости основных фондов за счет их ввода в эксплуатацию и вывода из эксплуатации."]
[null,null,null,"5.1.1","Изменение стоимости основных фондов за счет их ввода в эксплуатацию","тыс. руб.",4070,"Указываются изменение стоимости основных фондов за счет их ввода в эксплуатацию."]
[null,null,null,"5.1.2","Изменение стоимости основных фондов за счет их вывода в эксплуатацию","тыс. руб.",252,"Указываются изменение стоимости основных фондов за счет их вывода из эксплуатации."]
[null,null,null,"5.2","Изменение стоимости основных фондов за счет их переоценки","тыс. руб.",0]
[null,null,null,"6","Валовая прибыль (убытки) от продажи товаров и услуг по регулируемому виду деятельности","тыс. руб.",{"$f":"G17-G18+2969","v":-5807}]
[null,null,null,"7","Годовая бухгалтерская отчетность, включая бухгалтерский баланс и приложения к нему","-","https://portal.eias.ru/Portal/DownloadPage.aspx?type=12&guid=f0b290fa-f3ee-43bd-9535-85e1fae70cb5","Указывается ссылка на документ, предварительно загруженный в хранилище файлов ФГИС ЕИАС.\nРаскрывается регулируемой организацией, выручка от регулируемых видов деятельности которой превышает 80 процентов совокупной выручки за отчетный год."]
[null,null,null,"8","Объем сточных вод, принятых от потребителей оказываемых услуг","тыс. куб. м",3055.4650000000001]
[null,null,null,"9","Объем сточных вод, принятых от других регулируемых организаций в сфере водоотведения и (или) очистки сточных вод","тыс. куб. м",0]
[null,null,null,"10","Объем сточных вод, пропущенных через очистные сооружения","тыс. куб. м",3055.4650000000001]
[null,null,null,"11","Среднесписочная численность основного производственного персонала","человек",5]
[]
[]
[]
[]
[]
[]
[null,null,null,null,null,null,{"$f":"IF(G17-G18 <>G51,\"WARNING\",\"\")","v":"WARNING"}]

{"sheet":"Форма 1.0.1 | Форма 3.5.2","index":10,"n_rows":20,"n_cols":7,"rows_kept":20,"cut":false,"hidden":true,"merged":[[19,4,19,5],[4,3,4,6],[5,3,5,6],[7,3,7,6],[8,3,8,5],[8,6,9,6]]}
[null,null,null,null,null,null,4]
[]
[]
[]
[null,null,null,"Форма 1.0.1 Основные параметры раскрываемой информации 1"]
[null,null,null,{"$f":"IF(org=0,\"Не определено\",org)","v":"МУП \"Водоканал-Сервис\""}]
[]
[null,null,22,"Форма 1.0.1"]
[null,null,null,"Параметры формы",null,null,"Описание параметров формы"]
["\\",null,null,"№ п/п",null,"Информация"]
[null,null,null,"1",2,3,4]
[null,null,null,1,"Дата заполнения/внесения изменений",{"$f":"IF(form_up_date=\"\",\"\",form_up_date)","v":"27.04.2021"},"Указывается календарная дата первичного заполнения или внесения изменений в форму в виде «ДД.ММ.ГГГГ»."]
[null,null,null,"2.1","Наименование централизованной системы коммунальной инфраструктуры","наименование отсутствует","Указывается наименование централизованной системы холодного водоснабжения/горячего водоснабжения/водоотведения/теплоснабжения, к которой относится размещаемая информация.\nВ случае наличия нескольких централизованных систем коммунальной инфраструктуры, информация по каждой из них указывается в отдельной строке. "]
[null,null,null,"3.1","Наименование регулируемого вида деятельности","Водоотведение","Указывается наименование вида регулируемой деятельности."]
[null,null,null,"4.1","Территория оказания услуги по регулируемому виду деятельности","x"]
[null,null,null,{"$f":"D15&\".1\"","v":"4.1.1"},"Субъект РФ",{"$f":"IF(region_name=\"\",\"\",region_name)","v":"Иркутская область"},"Указывается наименование субъекта Российской Федерации"]
[null,null,null,"4.1.1.1","муниципальный район","Город Саянск","Указывается наименование муниципального района, на территории которого организация оказывает услуги по регулируемому виду деятельности."]
[null,null,null,"4.1.1.1.1","муниципальное образование","Город Саянск (25726000)","Указывается наименование и код муниципального района, муниципального образования в соответствии с Общероссийским классификатором территорий муниципальных образований (далее - ОКТМО), входящего в муниципальный район, на территории которого организация оказывает услуги по регулируемому виду деятельности.\nВ случае оказания услуг по регулируемому виду деятельности на территории нескольких муниципальных районов (муниципальных образований) данные по каждому их них указываются в отдельной строке."]
[]
[null,null,null,null,"  1 Информация по данной форме публикуется при раскрытии информации по каждой из форм."]

{"sheet":"Форма 3.5.2","index":11,"n_rows":18,"n_cols":34,"rows_kept":18,"cut":false,"hidden":true,"merged":[[11,28,17,28],[12,4,12,15],[12,20,14,20],[12,21,14,21],[15,4,15,15],[15,20,17,20],[15,21,17,21],[4,3,4,10],[22,4,22,17],[6,18,7,18],[6,3,6,17],[7,4,7,5],[7,7,7,8],[7,11,7,12],[11,3,17,3],[11,4,11,17]]}
[]
[]
[]
[]
[null,null,null,"Информация о расходах на капитальный и текущий ремонт основных производственных средств, расходах на услуги производственного характера"]
[]
[null,null,null,"Параметры формы",null,null,null,null,null,null,null,null,null,null,null,null,null,null,"Описание параметров формы"]
[null,null,null,"№ п/п","№ п/п",null,"Наименование параметра","№ п/п",null,"Способ приобретения","Реквизиты договора","№ п/п",null,"Наименование товара/услуги","Объем приобретенных товаров, услуг","Единица измерения объема","Стоимость, тыс. руб.","Доля расходов, % (от суммы расходов по указанной статье)"]
[null,null,null,"1",null,"2","3",null,"4","5","6",null,"7","8","9","10","11","12"]
[]
[null,null,null,"0"]
[22,null,null,"1","Вид деятельности:\r\n  - Водоотведение\r\n\r\nТерритория оказания услуг:\r\n  - без дифференциации\r\n\r\nЦентрализованная система водоотведения:\r\n  - наименование отсутствует",null,null,null,null,null,null,null,null,null,null,null,null,null,null,null,null,null,null,null,null,null,null,null,null,null,"",null,"NOTSHOW",3]
[null,null,null,null,"Информация об объемах товаров и услуг, их стоимости и способах приобретения у организаций, в том числе:",null,null,null,null,null,null,null,null,null,null,null,{"$f":"SUMIF(T14:T15,\"i\",Q14:Q15)","v":0},null,"Указывается сумма стоимости приобретения товаров и услуг у организаций, сумма оплаты услуг которых превышает 20% суммы расходов на капитальный и текущий ремонт основных производственных средства","i",1,{"$f":"INDEX(List01_flag_index_1,1,MATCH(A12,List01_NumberColumns,0))","v":"отсутствует"}]
[null,null,null,null,null,0]
[null,null,null,null,"","","Добавить поставщика",""]
[null,null,null,null,"Расходы на услуги производственного характера, выполняемые по договорам с организациями на проведение регламентных работ в рамках технологического процесса. Из них товары и услуги, приобретенные у организаций, сумма оплаты услуг которых превышает 20% суммы расходов по статье:",null,null,null,null,null,null,null,null,null,null,null,{"$f":"SUMIF(T17:T18,\"i\",Q17:Q18)","v":0},null,"Указывается сумма стоимости приобретения товаров и услуг у организаций, сумма оплаты услуг которых превышает 20% суммы расходов на капитальный и текущий ремонт основных производственных средства","i",2,{"$f":"INDEX(List01_flag_index_2,1,MATCH(A12,List01_NumberColumns,0))","v":"отсутствует"}]
[null,null,null,null,null,0]
[null,null,null,null,"","","",""]

{"sheet":"Форма 1.0.1 | Форма 3.6","index":12,"n_rows":20,"n_cols":7,"rows_kept":20,"cut":false,"hidden":false,"merged":[[19,4,19,5],[4,3,4,6],[5,3,5,6],[7,3,7,6],[8,3,8,5],[8,6,9,6]]}
[null,null,null,null,null,null,4]
[]
[]
[]
[null,null,null,"Форма 1.0.1 Основные параметры раскрываемой информации 1"]
[null,null,null,{"$f":"IF(org=0,\"Не определено\",org)","v":"МУП \"Водоканал-Сервис\""}]
[]
[null,null,22,"Форма 1.0.1"]
[null,null,null,"Параметры формы",null,null,"Описание параметров формы"]
["\\",null,null,"№ п/п",null,"Информация"]
[null,null,null,"1",2,3,4]
[null,null,null,1,"Дата заполнения/внесения изменений",{"$f":"IF(form_up_date=\"\",\"\",form_up_date)","v":"27.04.2021"},"Указывается календарная дата первичного заполнения или внесения изменений в форму в виде «ДД.ММ.ГГГГ»."]
[null,null,null,"2.1","Наименование централизованной системы коммунальной инфраструктуры","наименование отсутствует","Указывается наименование централизованной системы холодного водоснабжения/горячего водоснабжения/водоотведения/теплоснабжения, к которой относится размещаемая информация.\nВ случае наличия нескольких централизованных систем коммунальной инфраструктуры, информация по каждой из них указывается в отдельной строке. "]
[null,null,null,"3.1","Наименование регулируемого вида деятельности","Водоотведение","Указывается наименование вида регулируемой деятельности."]
[null,null,null,"4.1","Территория оказания услуги по регулируемому виду деятельности","x"]
[null,null,null,{"$f":"D15&\".1\"","v":"4.1.1"},"Субъект РФ",{"$f":"IF(region_name=\"\",\"\",region_name)","v":"Иркутская область"},"Указывается наименование субъекта Российской Федерации"]
[null,null,null,"4.1.1.1","муниципальный район","Город Саянск","Указывается наименование муниципального района, на территории которого организация оказывает услуги по регулируемому виду деятельности."]
[null,null,null,"4.1.1.1.1","муниципальное образование","Город Саянск (25726000)","Указывается наименование и код муниципального района, муниципального образования в соответствии с Общероссийским классификатором территорий муниципальных образований (далее - ОКТМО), входящего в муниципальный район, на территории которого организация оказывает услуги по регулируемому виду деятельности.\nВ случае оказания услуг по регулируемому виду деятельности на территории нескольких муниципальных районов (муниципальных образований) данные по каждому их них указываются в отдельной строке."]
[]
[null,null,null,null,"  1 Информация по данной форме публикуется при раскрытии информации по каждой из форм."]

{"sheet":"Форма 3.6","index":13,"n_rows":34,"n_cols":8,"rows_kept":34,"cut":false,"hidden":false,"merged":[[2,3,2,5],[6,7,8,7],[8,0,8,1],[7,3,8,3],[7,4,8,4],[7,5,8,5],[6,3,6,6]]}
[null,null,null,null,null,null,4,5]
[]
[null,null,null,"Информация об основных потребительских характеристиках регулируемых товаров и услуг регулируемой организации и их соответствии установленным требованиям"]
[]
[]
[null,null,null,null,null,null,22]
[null,null,null,"Параметры формы",null,null,null,"Описание параметров формы"]
[null,null,null,"№ п/п","Информация, подлежащая раскрытию","Единица измерения","Вид деятельности:\r\n  - Водоотведение\r\n\r\nТерритория оказания услуг:\r\n  - без дифференциации\r\n\r\nЦентрализованная система водоотведения:\r\n  - наименование отсутствует"]
[null,null,null,null,null,null,"Информация"]
[null,null,null,"1","2","3",{"$f":"G1","v":4}]
[null,null,null,1,"Показатель аварийности на канализационных сетях","ед. на км",0.02,"Указывается количество любых нарушений на канализационных сетях."]
[null,null,null,"2","Количество засоров на самотечных сетях","ед. на км",321,"Указывается количество засоров на самотечных сетях."]
[null,null,null,"3","Общее количество проведенных проб на сбросе очищенных (частично очищенных) сточных вод:","ед.",0,"Указывается суммарное количество проведенных проб на сбросе очищенных вод."]
[null,null,null,"3.1","взвешенные вещества","ед.",0]
[null,null,null,"3.2","БПК5","ед.",0]
[null,null,null,"3.3","аммоний-ион","ед.",0]
[null,null,null,"3.4","нитрит-анион","ед.",0]
[null,null,null,"3.5","фосфаты (по Р)","ед.",0]
[null,null,null,"3.6","нефтепродукты","ед.",0]
[null,null,null,"3.7","микробиология","ед.",0]
[null,null,null,"4","Количество проведенных проб, выявивших несоответствие очищенных (частично очищенных) сточных вод санитарным нормам (предельно допустимой концентрации) на сбросе очищенных (частично очищенных) сточных вод:","ед.",0,"Указывается суммарное количество проведенных проб, выявивших несоответствие очищенных сточных вод санитарным нормам (предельно допустимой концентрации) на сбросе очищенных (частично очищенных) сточных вод."]
[null,null,null,"4.1","взвешенные вещества","ед.",0]
[null,null,null,"4.2","БПК5","ед.",0]
[null,null,null,"4.3","аммоний-ион","ед.",0]
[null,null,null,"4.4","нитрит-анион","ед.",0]
[null,null,null,"4.5","фосфаты (по Р)","ед.",0]
[null,null,null,"4.6","нефтепродукты","ед.",0]
[null,null,null,"4.7","микробиология","ед.",0]
[null,null,null,"5","Доля исполненных в срок договоров о подключении","%",0,"Указывается процент общего количества заключенных договоров о подключении."]
[null,null,null,"6","Средняя продолжительность рассмотрения заявлений о подключении","дн.",0]
[null,null,null,"7","О результатах технического обследования централизованных систем водоотведения и (или) очистки сточных вод, в том числе:","x","https://portal.eias.ru/Portal/DownloadPage.aspx?type=12&guid=4297e30c-5a98-40e0-90e8-443b2bf21572","Указывается ссылка на документ, предварительно загруженный в хранилище файлов ФГИС ЕИАС."]
[null,null,null,"7.1","о фактических значениях показателей технико-экономического состояния централизованных систем водоотведения и (или) очистки сточных вод, включая значения показателей физического износа и энергетической эффективности объектов централизованных систем водоотведения и (или) очистки сточных вод.","x","https://portal.eias.ru/Portal/DownloadPage.aspx?type=12&guid=4297e30c-5a98-40e0-90e8-443b2bf21572","Указывается ссылка на документ, предварительно загруженный в хранилище файлов ФГИС ЕИАС."]
[null,null,null,"8","О нормативах допустимых сбросов веществ и микроорганизмов в водные объекты, установленных для объектов централизованных систем водоотведения, эксплуатируемых регулируемой организацией, в соответствии с законодательством Российской Федерации об охране окружающей среды (о лимитах на сбросы загрязняющих веществ и микроорганизмов, установленных для объектов централизованных систем водоотведения, эксплуатируемых регулируемой организацией, в соответствии с законодательством Российской Федерации об охране окружающей среды)","x","https://portal.eias.ru/Portal/DownloadPage.aspx?type=12&guid=4297e30c-5a98-40e0-90e8-443b2bf21572","Указывается ссылка на документ, предварительно загруженный в хранилище файлов ФГИС ЕИАС."]
[null,null,null,"9","О показателях эффективности удаления загрязняющих веществ очистными сооружениями регулируемых организаций","x","https://portal.eias.ru/Portal/DownloadPage.aspx?type=12&guid=4297e30c-5a98-40e0-90e8-443b2bf21572","Указывается ссылка на документ, предварительно загруженный в хранилище файлов ФГИС ЕИАС."]

{"sheet":"Форма 1.0.1 | Форма 3.7","index":14,"n_rows":20,"n_cols":7,"rows_kept":20,"cut":false,"hidden":true,"merged":[[19,4,19,5],[4,3,4,6],[5,3,5,6],[7,3,7,6],[8,3,8,5],[8,6,9,6]]}
[null,null,null,null,null,null,4]
[]
[]
[]
[null,null,null,"Форма 1.0.1 Основные параметры раскрываемой информации 1"]
[null,null,null,{"$f":"IF(org=0,\"Не определено\",org)","v":"МУП \"Водоканал-Сервис\""}]
[]
[null,null,22,"Форма 1.0.1"]
[null,null,null,"Параметры формы",null,null,"Описание параметров формы"]
["\\",null,null,"№ п/п",null,"Информация"]
[null,null,null,"1",2,3,4]
[null,null,null,1,"Дата заполнения/внесения изменений",{"$f":"IF(form_up_date=\"\",\"\",form_up_date)","v":"27.04.2021"},"Указывается календарная дата первичного заполнения или внесения изменений в форму в виде «ДД.ММ.ГГГГ»."]
[null,null,null,"2.1","Наименование централизованной системы коммунальной инфраструктуры","наименование отсутствует","Указывается наименование централизованной системы холодного водоснабжения/горячего водоснабжения/водоотведения/теплоснабжения, к которой относится размещаемая информация.\nВ случае наличия нескольких централизованных систем коммунальной инфраструктуры, информация по каждой из них указывается в отдельной строке. "]
[null,null,null,"3.1","Наименование регулируемого вида деятельности","Водоотведение","Указывается наименование вида регулируемой деятельности."]
[null,null,null,"4.1","Территория оказания услуги по регулируемому виду деятельности","x"]
[null,null,null,{"$f":"D15&\".1\"","v":"4.1.1"},"Субъект РФ",{"$f":"IF(region_name=\"\",\"\",region_name)","v":"Иркутская область"},"Указывается наименование субъекта Российской Федерации"]
[null,null,null,"4.1.1.1","муниципальный район","Город Саянск","Указывается наименование муниципального района, на территории которого организация оказывает услуги по регулируемому виду деятельности."]
[null,null,null,"4.1.1.1.1","муниципальное образование","Город Саянск (25726000)","Указывается наименование и код муниципального района, муниципального образования в соответствии с Общероссийским классификатором территорий муниципальных образований (далее - ОКТМО), входящего в муниципальный район, на территории которого организация оказывает услуги по регулируемому виду деятельности.\nВ случае оказания услуг по регулируемому виду деятельности на территории нескольких муниципальных районов (муниципальных образований) данные по каждому их них указываются в отдельной строке."]
[]
[null,null,null,null,"  1 Информация по данной форме публикуется при раскрытии информации по каждой из форм."]

{"sheet":"Форма 3.7","index":15,"n_rows":81,"n_cols":13,"rows_kept":81,"cut":false,"hidden":true,"merged":[[67,1,71,1],[72,1,76,1],[7,5,8,5],[7,6,8,6],[7,7,8,7],[19,1,21,1],[57,1,59,1],[62,1,66,1],[22,1,24,1],[4,5,4,8],[80,6,80,12],[79,6,79,12],[7,8,7,10],[6,12,8,12],[6,5,6,11]]}
[]
[]
[]
[]
[null,null,null,null,null,"Информация об инвестиционных программах регулируемой организации1"]
[]
[null,null,null,null,null,"Параметры формы",null,null,null,null,null,null,"Описание параметров формы"]
[null,null,null,null,null,"№ п/п","Наименование параметра","Единица измерения"]
[null,null,null,null,null,null,null,null,"Инвестиционная программа в целом","Мероприятие2","Добавить мероприятие"]
[null,null,null,null,null,"1","2","3","4","4.0"]
[null,null,null,null,null,1,"Наименование инвестиционной программы/мероприятия","x"]
[null,null,null,null,null,2,"Дата утверждения инвестиционной программы","x",null,"x",null,null,"Дата утверждения инвестиционной программы указывается в виде «ДД.ММ.ГГГГ»."]
[null,null,null,null,null,"2.1","Дата изменения инвестиционной программы","x",null,"x",null,null,"Дата изменения инвестиционной программы указывается (в случае наличия изменения) в виде «ДД.ММ.ГГГГ»."]
[null,null,null,null,null,"3","Цель инвестиционной программы","x",null,"x",null,null,"Цель инвестиционной программы определяется из перечня: Автоматизация (с уменьшением штата); Уменьшение удельных затрат (повышение коэффициента полезного действия); Уменьшение издержек на производство; Снижение аварийности; Прочее\nВозможен выбор нескольких пунктов."]
[null,null,null,null,null,"4","Наименование уполномоченного органа, утвердившего программу","x",null,"x",null,null,"Указывается уполномоченный в соответствии с законодательством Российской Федерации орган власти, утвердивший инвестиционную программу."]
[null,null,null,null,null,"5","Наименование органа местного самоуправления, согласовавшего инвестиционную программу","x",null,"x"]
[null,null,null,null,null,"6","Срок начала реализации инвестиционной программы/мероприятия","x",null,null,null,null,"Срок начала реализации инвестиционной программы/мероприятия указывается в виде «ДД.ММ.ГГГГ»."]
[null,null,null,null,null,"7","Срок окончания реализации инвестиционной программы/мероприятия","x",null,null,null,null,"Срок окончания реализации инвестиционной программы/мероприятия указывается в виде «ДД.ММ.ГГГГ»."]
[null,null,null,null,null,"8","Потребность в финансовых средствах, необходимых для реализации инвестиционной программы, в том числе с разбивкой по годам, мероприятиям и источникам финансирования инвестиционной программы:","тыс. руб.",{"$f":"SUM(J19:K19)","v":0},{"$f":"SUMIF(List06_flag_year,\"y\",J20:J26)","v":0},null,null,"Указывается суммарная потребность в финансовых средствах, необходимых для реализации инвестиционной программы, по всем источникам финансирования."]
[null,"8.0",null,null,null,{"$f":"B20","v":"8.0"},null,"тыс. руб.",{"$f":"SUM(I21:I22)","v":0},{"$f":"SUM(J21:J22)","v":0},"y",null,"Год реализации инвестиционной программы/мероприятия должен содержаться в сроке реализации инвестиционной программы, определенном в пунктах 6 и 7 данной формы.\nВ случае реализации инвестиционной программы/мероприятия в течение нескольких лет информация по каждому году указывается в отдельных строках."]
[null,null,1,null,null,{"$f":"B20&\".\"&C21","v":"8.0.1"},null,"тыс. руб.",null,null,"i",null,"Вид источника финансирования определяется из перечня: Кредиты банков; Кредиты иностранных банков; Заемные средства др. организаций; Федеральный бюджет; Бюджет субъекта Российской Федерации; Бюджет муниципального образования; Средства внебюджетных фондов; Прибыль, направленная на инвестиции; Амортизация; Инвестиционная надбавка к тарифу; Плата за подключение (технологическое присоединение);  Прочие средства.\nВ случае наличия нескольких источников финансирования информация по каждому из них указывается в отдельных строках."]
[null,null,null,null,null,null,"Добавить источники"]
[null,"8.1",null,null,null,{"$f":"B23","v":"8.1"},null,"тыс. руб.",{"$f":"SUM(I24:I25)","v":0},{"$f":"SUM(J24:J25)","v":0},"y",null,"Год реализации инвестиционной программы/мероприятия должен содержаться в сроке реализации инвестиционной программы, определенном в пунктах 6 и 7 данной формы.\nВ случае реализации инвестиционной программы/мероприятия в течение нескольких лет информация по каждому году указывается в отдельных строках."]
[null,null,1,null,null,{"$f":"B23&\".\"&C24","v":"8.1.1"},null,"тыс. руб.",null,null,"i",null,"Вид источника финансирования определяется из перечня: Кредиты банков; Кредиты иностранных банков; Заемные средства др. организаций; Федеральный бюджет; Бюджет субъекта Российской Федерации; Бюджет муниципального образования; Средства внебюджетных фондов; Прибыль, направленная на инвестиции; Амортизация; Инвестиционная надбавка к тарифу; Плата за подключение (технологическое присоединение);  Прочие средства.\nВ случае наличия нескольких источников финансирования информация по каждому из них указывается в отдельных строках."]
[null,null,null,null,null,null,"Добавить источники"]
[null,null,null,null,null,null,"Добавить год"]
[null,null,null,null,null,"9","Целевые показатели инвестиционной программы","x","x","x"]
[null,null,null,null,null,"9.1","Срок окупаемости","x","x","x"]
[null,null,null,null,null,"9.1.1","Факт","лет"]
[null,null,null,null,null,"9.1.2","План","лет"]
[null,null,null,null,null,"9.2","Перебои в снабжении потребителей","x","x","x"]
[null,null,null,null,null,"9.2.1","Факт","час./чел.",null,null,null,null,"Указывается фактическое значение отношения суммы произведений продолжительности отключений и количества пострадавших потребителей от каждого из этих отключений к количеству потребителей, проживающих в домах, в которых проходили отключения в отчетном периоде."]
[null,null,null,null,null,"9.2.2","План","час./чел.",null,null,null,null,"Указывается плановое значение отношения суммы произведений\nпродолжительности отключений и количества пострадавших потребителей от каждого из этих отключений к количеству потребителей, проживающих в домах, в которых проходили отключения в отчетном периоде."]
[null,null,null,null,null,"9.3","Продолжительность (бесперебойность) поставки товаров и услуг","x","x","x"]
[null,null,null,null,null,"9.3.1","Факт","час./день",null,null,null,null,"Указывается фактическое значение отношения количества часов предоставления услуг к количеству календарных дней в отчетном периоде."]
[null,null,null,null,null,"9.3.2","План","час./день",null,null,null,null,"Указывается плановое значение отношения количества часов предоставления услуг к количеству календарных дней в отчетном периоде."]
[null,null,null,null,null,"9.4","Доля потерь и неучтенного потребления ","x","x","x"]
[null,null,null,null,null,"9.4.1","Факт","%",null,null,null,null,"Указывается фактическое значение доли потерь и неучтенного потребления воды в общем объеме воды, поданной в водопроводную сеть в отчетном периоде."]
[null,null,null,null,null,"9.4.2","План","%",null,null,null,null,"Указывается плановое значение доли потерь и неучтенного потребления воды в общем объеме воды, поданной в водопроводную сеть в отчетном периоде."]
[null,null,null,null,null,"9.5","Обеспеченность потребления товаров и услуг приборами учета","x","x","x"]
[null,null,null,null,null,"9.5.1","Факт","%"]
[null,null,null,null,null,"9.5.2","План","%"]
[null,null,null,null,null,"9.6","Численность населения, получающего услуги данной организации","x","x","x"]
[null,null,null,null,null,"9.6.1","Факт","чел.",null,null,null,null,"Указывается фактическое значение численности населения, проживающего в многоквартирных и жилых домах, подключенных к системе водоотведения и (или) очистки сточных вод в отчетном периоде."]
[null,null,null,null,null,"9.6.2","План","чел.",null,null,null,null,"Указывается плановое значение численности населения, проживающего в многоквартирных и жилых домах, подключенных к системе водоотведения и (или) очистки сточных вод в отчетном периоде."]
[null,null,null,null,null,"9.7","Удельное водопотребление","x","x","x"]
[null,null,null,null,null,"9.7.1","Факт","куб. м/чел.",null,null,null,null,"Указывается фактическое значение объема потребления воды в расчете на одного человека, получающего услуги организации в отчетном периоде."]
[null,null,null,null,null,"9.7.2","План","куб. м/чел.",null,null,null,null,"Указывается плановое значение объема потребления воды в расчете на одного человека, получающего услуги организации в отчетном периоде."]
[null,null,null,null,null,"9.8","Удельный расход электроэнергии","x","x","x"]
[null,null,null,null,null,"9.8.1","Факт","кВт.ч/куб. м",null,null,null,null,"Указывается фактическое значение расхода электроэнергии на производство и поставку в отчетном периоде."]
[null,null,null,null,null,"9.8.2","План","кВт.ч/куб. м",null,null,null,null,"Указывается плановое значение расхода электроэнергии на производство и поставку в отчетном периоде."]
[null,null,null,null,null,"9.9","Количество аварий","x","x","x"]
[null,null,null,null,null,"9.9.1","Факт","ед./км",null,null,null,null,"Указывается фактическое значение отношения количества аварий на системах коммунальной инфраструктуры к протяженности сетей в отчетном периоде."]
[null,null,null,null,null,"9.9.2","План","ед./км",null,null,null,null,"Указывается плановое значение отношения количества аварий на системах коммунальной инфраструктуры к протяженности сетей в отчетном периоде."]
[null,null,null,null,null,"9.10","Производительность труда","x","x","x",null,null,"В случае наличия дополнительных целевых показателей инвестиционной программы информация по ним указывается в отдельных строках."]
[null,null,null,null,null,"9.10.1","Факт","тыс. руб./чел.",null,null,null,null,"Указывается фактическое значение отношение фонда оплаты труда к численности всех рабочих основного вида деятельности организации.  \nВ число рабочих основного вида деятельности включаются рабочие, занятые на производственных процессах по подъему, очистке и транспортировке воды."]
[null,null,null,null,null,"9.10.2","План","тыс. руб./чел.",null,null,null,null,"Указывается плановое значение отношение фонда оплаты труда к численности всех рабочих основного вида деятельности организации.  \nВ число рабочих основного вида деятельности включаются рабочие, занятые на производственных процессах по подъему, очистке и транспортировке воды."]
[null,"9.10",null,null,null,{"$f":"B58","v":"9.10"},null,null,"x","x"]
[null,null,null,null,null,{"$f":"B58&\".1\"","v":"9.10.1"},"Факт",{"$f":"IF(H58=\"\",\"x\",H58)","v":"x"}]
[null,null,null,null,null,{"$f":"B58&\".2\"","v":"9.10.2"},"План",{"$f":"IF(H58=\"\",\"x\",H58)","v":"x"}]
[null,null,null,null,null,null,"Добавить показатель"]
[null,"print",null,null,null,"10","Использование инвестиционных средств за отчетный период","x","x","x"]
[null,"10.0",null,null,null,{"$f":"B63","v":"10.0"},"Использовано инвестиционных средств всего в отчетном периоде, в том числе:","тыс. руб.",{"$f":"SUM(I64:I67)","v":0},{"$f":"SUM(J64:J67)","v":0},null,null,"Указывается сумма использованных инвестиционных средства по всем источникам финансирования в отчетном периоде."]
[null,null,null,null,null,{"$f":"B63&\".1\"","v":"10.0.1"},"I квартал","тыс. руб.",{"$f":"SUMIF($G$68:$G$78,$G64,I$68:I$78)","v":0},0,null,null,"Указывается сумма использованных инвестиционных средств в I квартале отчетного периода по всем источникам финансирования."]
[null,null,null,null,null,{"$f":"B63&\".2\"","v":"10.0.2"},"II квартал","тыс. руб.",0,0,null,null,"Указывается сумма использованных инвестиционных средств в II квартале отчетного периода по всем источникам финансирования."]
[null,null,null,null,null,{"$f":"B63&\".3\"","v":"10.0.3"},"III квартал","тыс. руб.",0,0,null,null,"Указывается сумма использованных инвестиционных средств в III квартале отчетного периода по всем источникам финансирования."]
[null,null,null,null,null,{"$f":"B63&\".4\"","v":"10.0.4"},"IV квартал","тыс. руб.",0,0,null,null,"Указывается сумма использованных инвестиционных средств в IV квартале отчетного периода по всем источникам финансирования."]
[null,"10.0",null,null,null,{"$f":"B68","v":"10.0"},null,"тыс. руб.",{"$f":"SUM(I69:I72)","v":0},{"$f":"SUM(J69:J72)","v":0},{"$f":"G68","v":0},null,"Вид источника финансирования определяется из перечня: Кредиты банков; Кредиты иностранных банков; Заемные средства др. организаций; Федеральный бюджет; Бюджет субъекта Российской Федерации; Бюджет муниципального образования; Средства внебюджетных фондов; Прибыль, направленная на инвестиции; Амортизация; Инвестиционная надбавка к тарифу; Плата за подключение (технологическое присоединение); Прочие средства.\nВ случае наличия нескольких источников финансирования информация по каждому из них указывается в отдельных строках."]
[null,null,null,null,null,{"$f":"B68&\".1\"","v":"10.0.1"},"I квартал","тыс. руб."]
[null,null,null,null,null,{"$f":"B68&\".2\"","v":"10.0.2"},"II квартал","тыс. руб."]
[null,null,null,null,null,{"$f":"B68&\".3\"","v":"10.0.3"},"III квартал","тыс. руб."]
[null,null,null,null,null,{"$f":"B68&\".4\"","v":"10.0.4"},"IV квартал","тыс. руб."]
[null,"10.1",null,null,null,{"$f":"B73","v":"10.1"},null,"тыс. руб.",{"$f":"SUM(I74:I77)","v":0},{"$f":"SUM(J74:J77)","v":0},{"$f":"G73","v":0},null,"Вид источника финансирования определяется из перечня: Кредиты банков; Кредиты иностранных банков; Заемные средства др. организаций; Федеральный бюджет; Бюджет субъекта Российской Федерации; Бюджет муниципального образования; Средства внебюджетных фондов; Прибыль, направленная на инвестиции; Амортизация; Инвестиционная надбавка к тарифу; Плата за подключение (технологическое присоединение); Прочие средства.\nВ случае наличия нескольких источников финансирования информация по каждому из них указывается в отдельных строках."]
[null,null,null,null,null,{"$f":"B73&\".1\"","v":"10.1.1"},"I квартал","тыс. руб."]
[null,null,null,null,null,{"$f":"B73&\".2\"","v":"10.1.2"},"II квартал","тыс. руб."]
[null,null,null,null,null,{"$f":"B73&\".3\"","v":"10.1.3"},"III квартал","тыс. руб."]
[null,null,null,null,null,{"$f":"B73&\".4\"","v":"10.1.4"},"IV квартал","тыс. руб."]
[null,null,null,null,null,null,"Добавить источники"]
[]
[null,null,null,null,null,1,"Информация раскрывается в случае, если регулируемая организация выполняет или планирует выполнение инвестиционной программы в отчетном периоде."]
[null,null,null,null,null,2,"В случае выполнения нескольких мероприятий информация по каждому из них указывается в отдельной колонке"]

{"sheet":"Форма 1.0.2","index":16,"n_rows":15,"n_cols":13,"rows_kept":15,"cut":false,"hidden":true,"merged":[[11,10,12,10],[14,4,14,9],[4,3,4,9],[7,3,7,9],[7,10,9,10],[8,3,9,3],[8,4,8,5],[8,6,8,9]]}
[]
[]
[]
[]
[null,null,null,"Форма 1.0.2 Информация о публикации в печатных изданиях 2"]
[]
[]
[null,null,null,"Параметры формы",null,null,null,null,null,null,"Описание параметров формы"]
[null,null,null,"№ п/п","Форма публикации",null,"Официальное печатное издание"]
[null,null,null,null,"Номер","Наименование","Наименование","Номер","Дата выпуска","Ссылка на документ"]
[null,null,null,"1","2","3","4","5","6","7"]
["3","",null,"1",null,null,null,null,null,null,"В колонке «Дата выпуска» дата выпуска печатного издания указывается в виде «ДД.ММ.ГГГГ».\nВ колонке «Ссылка на документ» указывается ссылка на отсканированную копию печатного издания, предварительно загруженную в хранилище федеральной государственной информационной системы «Единая информационно-аналитическая система «Федеральный орган регулирования - региональные органы регулирования - субъекты регулирования» (далее – ФГИС ЕИАС), с опубликованной информацией.\nВ случае публикации информации в нескольких печатных изданиях информация по каждому из них указывается в отдельной строке.",null,{"$f":"IF(ISERROR(INDEX(kind_of_nameforms,MATCH(E12,kind_of_forms,0),1)),\"\",INDEX(kind_of_nameforms,MATCH(E12,kind_of_forms,0),1))","v":""}]
[null,null,null,null,"Добавить строку"]
[]
[null,null,null,null,"2 В данной форме публикуется информация по каждой из форм раскрытия, данные в которой относятся к муниципальному образованию, в котором отсутствует доступ в информационно-телекоммуникационную сеть «Интернет» (далее – сеть «Интернет»)."]

{"sheet":"Сведения об изменении","index":17,"n_rows":14,"n_cols":5,"rows_kept":14,"cut":false,"hidden":true,"merged":[[6,3,6,4],[7,3,7,4]]}
[]
[]
[]
[]
[]
[]
[null,null,null,"Сведения об изменениях в первоначально опубликованной информации"]
[null,null,null,{"$f":"IF(org=0,\"Не определено\",org)","v":"МУП \"Водоканал-Сервис\""}]
[]
[null,null,null,"№ п/п","Сведения"]
[null,null,null,"1","2"]
[null,null,null,0]
[null,null,null,1]
[null,null,null,null,"Добавить строку"]

{"sheet":"Комментарии","index":18,"n_rows":14,"n_cols":8,"rows_kept":14,"cut":false,"hidden":false,"merged":[[6,3,6,4],[7,3,7,4]]}
[]
[]
[]
[]
[]
[]
[null,null,null,"Комментарии"]
[null,null,null,{"$f":"IF(org=0,\"Не определено\",org)","v":"МУП \"Водоканал-Сервис\""}]
[]
[null,null,null,"№ п/п","Комментарий"]
[null,null,null,"1","2"]
[null,null,null,0]
[null,null,"О",1,"Выручка по водоотведению в таблице стоит в соответствии с \"Отчетом о прибылях и убытках\" за 2020г. и равна 54615 т.р. Строка в форме 3.5.1 для отражения размера субсидии отсутствует. Поэтому валовый убыток будет равен: 54615 т.р.+2969 т.р.(субсидии)-63391 т.р.(себестоимость)=-5807 т.р.","","",""]
[null,null,null,null,"Добавить"]

{"sheet":"Проверка","index":19,"n_rows":4,"n_cols":5,"rows_kept":4,"cut":false,"hidden":false,"merged":[[1,1,1,4]]}
[]
[null,"Результат проверки"]
[]
[null,"Ссылка1","Ссылка2","Причина","Статус"]

{"sheet":"modReestr","index":20,"n_rows":0,"n_cols":0,"rows_kept":0,"cut":false,"hidden":true,"merged":[]}

{"sheet":"AllSheetsInThisWorkbook","index":21,"n_rows":43,"n_cols":2,"rows_kept":43,"cut":false,"hidden":true,"merged":[]}
["Расчетные листы","Скрытые листы"]
["Инструкция","modProv"]
["Лог обновления","modReestr"]
["Титульный","AllSheetsInThisWorkbook"]
["Территории","modCheckCyan"]
["Дифференциация","modInfo"]
["Форма 1.0.1 | Форма 3.5.1","TEHSHEET"]
["Форма 3.5.1","modfrmSelectData"]
["Форма 3.5.2","modList06"]
["Форма 3.6","modList01"]
["Форма 3.7","modList05"]
["Форма 1.0.2","modList08"]
["Сведения об изменении","et_union_hor"]
["Комментарии","et_union_vert"]
["Проверка","modList00"]
[null,"modList02"]
[null,"modList03"]
[null,"modList04"]
[null,"modList07"]
[null,"modList09"]
[null,"modHTTP"]
[null,"modfrmRegion"]
[null,"MR_LIST"]
[null,"REESTR_VT"]
[null,"REESTR_VED"]
[null,"modfrmReestrObj"]
[null,"DataOrg"]
[null,"modfrmReestr"]
[null,"modUpdTemplMain"]
[null,"REESTR_ORG"]
[null,"modClassifierValidate"]
[null,"modHyp"]
[null,"modfrmDateChoose"]
[null,"modComm"]
[null,"modThisWorkbook"]
[null,"REESTR_MO"]
[null,"REESTR_MO_FILTER"]
[null,"modfrmReestrMR"]
[null,"modServiceModule"]
[null,"modfrmCheckUpdates"]
[null,"REESTR_DS"]
[null,"REESTR_CHS"]
[null,"REESTR_LINK"]

{"sheet":"modCheckCyan","index":22,"n_rows":76,"n_cols":1,"rows_kept":76,"cut":false,"hidden":true,"merged":[]}
[]
[{"$f":"IF(Дифференциация!$E$22=\"\",1,0)","v":0}]
[{"$f":"IF('Сведения об изменении'!$E$13=\"\",1,0)","v":1}]
[{"$f":"IF(Территории!$E$12=\"\",1,0)","v":0}]
[{"$f":"IF('Форма 3.5.1'!$G$17=\"\",1,0)","v":0}]
[{"$f":"IF('Форма 3.5.1'!$G$19=\"\",1,0)","v":0}]
[{"$f":"IF('Форма 3.5.1'!$G$20=\"\",1,0)","v":0}]
[{"$f":"IF('Форма 3.5.1'!$G$21=\"\",1,0)","v":0}]
[{"$f":"IF('Форма 3.5.1'!$G$22=\"\",1,0)","v":0}]
[{"$f":"IF('Форма 3.5.1'!$G$23=\"\",1,0)","v":0}]
[{"$f":"IF('Форма 3.5.1'!$G$24=\"\",1,0)","v":0}]
[{"$f":"IF('Форма 3.5.1'!$G$25=\"\",1,0)","v":0}]
[{"$f":"IF('Форма 3.5.1'!$G$26=\"\",1,0)","v":0}]
[{"$f":"IF('Форма 3.5.1'!$G$27=\"\",1,0)","v":0}]
[{"$f":"IF('Форма 3.5.1'!$G$28=\"\",1,0)","v":0}]
[{"$f":"IF('Форма 3.5.1'!$G$29=\"\",1,0)","v":0}]
[{"$f":"IF('Форма 3.5.1'!$G$30=\"\",1,0)","v":0}]
[{"$f":"IF('Форма 3.5.1'!$G$31=\"\",1,0)","v":0}]
[{"$f":"IF('Форма 3.5.1'!$G$32=\"\",1,0)","v":0}]
[{"$f":"IF('Форма 3.5.1'!$G$33=\"\",1,0)","v":0}]
[{"$f":"IF('Форма 3.5.1'!$G$34=\"\",1,0)","v":0}]
[{"$f":"IF('Форма 3.5.1'!$G$35=\"\",1,0)","v":0}]
[{"$f":"IF('Форма 3.5.1'!$G$36=\"\",1,0)","v":0}]
[{"$f":"IF('Форма 3.5.1'!$G$38=\"\",1,0)","v":0}]
[{"$f":"IF('Форма 3.5.1'!$G$44=\"\",1,0)","v":0}]
[{"$f":"IF('Форма 3.5.1'!$G$45=\"\",1,0)","v":0}]
[{"$f":"IF('Форма 3.5.1'!$G$46=\"\",1,0)","v":0}]
[{"$f":"IF('Форма 3.5.1'!$G$47=\"\",1,0)","v":0}]
[{"$f":"IF('Форма 3.5.1'!$G$48=\"\",1,0)","v":0}]
[{"$f":"IF('Форма 3.5.1'!$G$49=\"\",1,0)","v":0}]
[{"$f":"IF('Форма 3.5.1'!$G$50=\"\",1,0)","v":0}]
[{"$f":"IF('Форма 3.5.1'!$G$51=\"\",1,0)","v":0}]
[{"$f":"IF('Форма 3.5.1'!$G$52=\"\",1,0)","v":0}]
[{"$f":"IF('Форма 3.5.1'!$G$53=\"\",1,0)","v":0}]
[{"$f":"IF('Форма 3.5.1'!$G$54=\"\",1,0)","v":0}]
[{"$f":"IF('Форма 3.5.1'!$G$55=\"\",1,0)","v":0}]
[{"$f":"IF('Форма 3.5.1'!$G$56=\"\",1,0)","v":0}]
[{"$f":"IF('Форма 3.6'!$G$12=\"\",1,0)","v":0}]
[{"$f":"IF('Форма 3.6'!$G$13=\"\",1,0)","v":0}]
[{"$f":"IF('Форма 3.6'!$G$14=\"\",1,0)","v":0}]
[{"$f":"IF('Форма 3.6'!$G$15=\"\",1,0)","v":0}]
[{"$f":"IF('Форма 3.6'!$G$16=\"\",1,0)","v":0}]
[{"$f":"IF('Форма 3.6'!$G$17=\"\",1,0)","v":0}]
[{"$f":"IF('Форма 3.6'!$G$18=\"\",1,0)","v":0}]
[{"$f":"IF('Форма 3.6'!$G$19=\"\",1,0)","v":0}]
[{"$f":"IF('Форма 3.6'!$G$20=\"\",1,0)","v":0}]
[{"$f":"IF('Форма 3.6'!$G$21=\"\",1,0)","v":0}]
[{"$f":"IF('Форма 3.6'!$G$22=\"\",1,0)","v":0}]
[{"$f":"IF('Форма 3.6'!$G$23=\"\",1,0)","v":0}]
[{"$f":"IF('Форма 3.6'!$G$24=\"\",1,0)","v":0}]
[{"$f":"IF('Форма 3.6'!$G$25=\"\",1,0)","v":0}]
[{"$f":"IF('Форма 3.6'!$G$26=\"\",1,0)","v":0}]
[{"$f":"IF('Форма 3.6'!$G$27=\"\",1,0)","v":0}]
[{"$f":"IF('Форма 3.6'!$G$28=\"\",1,0)","v":0}]
[{"$f":"IF('Форма 3.6'!$G$29=\"\",1,0)","v":0}]
[{"$f":"IF('Форма 3.6'!$G$30=\"\",1,0)","v":0}]
[{"$f":"IF('Форма 3.6'!$G$31=\"\",1,0)","v":0}]
[{"$f":"IF('Форма 3.6'!$G$32=\"\",1,0)","v":0}]
[{"$f":"IF('Форма 3.6'!$G$33=\"\",1,0)","v":0}]
[{"$f":"IF('Форма 3.6'!$G$34=\"\",1,0)","v":0}]
[{"$f":"IF('Форма 3.6'!$G$11=\"\",1,0)","v":0}]
[{"$f":"IF('Форма 3.7'!$I$11=\"\",1,0)","v":1}]
[{"$f":"IF('Форма 3.7'!$I$12=\"\",1,0)","v":1}]
[{"$f":"IF('Форма 3.7'!$I$13=\"\",1,0)","v":1}]
[{"$f":"IF('Форма 3.7'!$I$15=\"\",1,0)","v":1}]
[{"$f":"IF('Форма 3.7'!$I$16=\"\",1,0)","v":1}]
[{"$f":"IF('Форма 3.7'!$I$17=\"\",1,0)","v":1}]
[{"$f":"IF('Форма 3.7'!$I$18=\"\",1,0)","v":1}]
[{"$f":"IF('Форма 3.7'!$G$23=\"\",1,0)","v":1}]
[{"$f":"IF('Форма 3.7'!$G$24=\"\",1,0)","v":1}]
[{"$f":"IF('Форма 3.7'!$I$24=\"\",1,0)","v":1}]
[{"$f":"IF('Форма 3.7'!$G$73=\"\",1,0)","v":1}]
[{"$f":"IF('Форма 3.7'!$I$74=\"\",1,0)","v":1}]
[{"$f":"IF('Форма 3.7'!$I$75=\"\",1,0)","v":1}]
[{"$f":"IF('Форма 3.7'!$I$76=\"\",1,0)","v":1}]
[{"$f":"IF('Форма 3.7'!$I$77=\"\",1,0)","v":1}]

{"sheet":"modInfo","index":23,"n_rows":11,"n_cols":2,"rows_kept":11,"cut":false,"hidden":true,"merged":[[4,3,4,10],[0,3,0,10],[1,3,1,10],[2,3,2,10],[3,3,3,10]]}
[null,"Территории"]
[1,"Наименование территории оказания услуг для целей идентификации"]
[2,"Муниципальные районы и муниципальные образования, на территории которых осуществляется оказание услуг"]
[null,"Дифференциация"]
[1,"В случае, если регулируемая организация осуществляет несколько видов деятельности, информация о которых подлежит раскрытию, информация по каждому виду деятельности раскрывается отдельно."]
[2,"Поле заполняется выбором значений из списка. Если значений для выбора нет - убедитесь, что лист \"Территории\" заполнен."]
[3,"Условное наименование централизованной системы коммунальной инфраструктуры для целей идентификации."]
[4,"В случае, если регулируемыми организациями оказываются услуги по нескольким технологически не связанным между собой  централизованным системам коммунальной инфраструктуры и если в отношении указанных централизованных систем устанавливаются различные тарифы, то информация раскрывается отдельно по каждой централизованной системе коммунальной инфраструктуры."]
[null,"Сведения об изменении"]
[1,"Лист заполняется в случае, если на Титульном листе в поле \"Тип отчета\" выбрано значение «Изменения в раскрытой ранее информации»."]
[null,"Нет доступных обновлений, версия отчёта актуальна"]

{"sheet":"TEHSHEET","index":24,"n_rows":87,"n_cols":23,"rows_kept":87,"cut":false,"hidden":true,"merged":[[0,18,0,19],[0,21,0,22]]}
["REGION",null,"year_list","logical","Месяц\n(MONTH)","Квартал\n(QUARTER)","Месяц\n(kind_of_publication)","Единица измерения объема оказываемых услуг ГВС\n/kind_of_unit_GVS/","Вид тарифа\n/list_of_tariff/","mr_id","версия шаблона\n (DocProp_Version)","0.1","Тип отчета\ndata_type",null,"Источники финансирования\n/source_of_funding/","цель инвестиционной программы /kind_of_purchase_method/",null,null,"Перечень форм\n(kind_of_forms)",null,null,"цель инвестиционной программы /objective_of_IPR/"]
["Алтайский край",null,2018,"да","январь","I квартал","На официальном сайте организации","тыс.куб.м/сутки",null,52,"код шаблона\n(DocProp_TemplateCode)","FAS.JKH.OPEN.INFO.BALANCE.HVS","первичное раскрытие информации",null,"кредиты банков","Торги/аукционы",null,null,"Форма 1.0.1","Основные параметры раскрываемой информации",null,"автоматизация (с уменьшением штата)",false]
["Амурская область",null,2019,"нет","февраль","II квартал","На сайте регулирующего органа","Гкал/час","Без дифференциации","sys_id","сфера\n(TSphere)","ХВС","изменения в раскрытой ранее информации",null,"кредиты иностранных банков","Прямые договора без торгов",null,null,"Форма 3.5.1","Информация об основных показателях финансово-хозяйственной деятельности регулируемой организации, включая структуру основных производственных затрат (в части регулируемой деятельности)",null,"уменьшение удельных затрат (повышение КПД)",false]
["Архангельская область",null,2020,null,"март","III квартал",null,"куб.м/час",null,104,"сфера(латиница)\n(TSphere_trans)","VS",null,null,"заемные средства др. организаций","Прочее",null,null,"Форма 3.5.2","Информация о расходах на капитальный и текущий ремонт основных производственных средств, расходах на услуги производственного характера",null,"уменьшение издержек на производство",false]
["Астраханская область",null,2021,null,"апрель","IV квартал",null,null,null,null,"сфера расширено\n(TSphere_full)",null,null,null,"федеральный бюджет",null,null,null,"Форма 3.6","Информация об основных потребительских характеристиках регулируемых товаров и услуг регулируемой организации и их соответствии установленным требованиям",null,"снижение аварийности",false]
["Белгородская область",null,null,null,"май",null,null,null,null,null,null,null,null,null,"бюджет субъекта Российской Федерации",null,null,null,"Форма 3.7","Информация об инвестиционных программах регулируемой организации",null,"прочее",false]
["Брянская область",null,null,null,"июнь",null,null,null,null,null,null,null,null,null,"бюджет муниципального образования"]
["Владимирская область",null,null,null,"июль",null,null,null,null,null,"true",null,null,null,"средства внебюджетных фондов"]
["Волгоградская область",null,null,null,"август",null,null,null,null,null,null,null,null,null,"прибыль, направленная на инвестиции"]
["Вологодская область",null,null,null,"сентябрь",null,null,null,null,null,null,null,null,null,"амортизация"]
["Воронежская область",null,null,null,"октябрь",null,null,null,null,null,null,null,null,null,"инвестиционная надбавка к тарифу"]
["г.Байконур",null,null,null,"ноябрь",null,null,null,null,null,null,null,null,null,"плата за подключение (технологическое присоединение)"]
["г. Москва",null,null,null,"декабрь",null,null,null,null,null,null,null,null,null,"прочие средства"]
["г.Санкт-Петербург"]
["г.Севастополь"]
["Еврейская автономная область",null,null,null,null,null,"Текущая дата"]
["Забайкальский край",null,"Организация",{"$f":"IF(f_year = \"\",\"\", \"01.01.\"&f_year)","v":"01.01.2020"},{"$f":"IF(f_year = \"\",\"\", \"31.12.\"& f_year)","v":"31.12.2020"},null,"27.04.2021 15:03:04"]
["Ивановская область"]
["Иркутская область",null,null,null,null,null,"Признак изменения данных на листе Доступ к товарам и услугам"]
["Кабардино-Балкарская республика",null,"Виды деятельности",null,null,null,true]
["Калининградская область"]
["Калужская область"]
["Камчатский край"]
["Карачаево-Черкесская республика"]
["Кемеровская область"]
["Кировская область"]
["Костромская область"]
["Краснодарский край"]
["Красноярский край"]
["Курганская область"]
["Курская область"]
["Ленинградская область"]
["Липецкая область"]
["Магаданская область"]
["Московская область"]
["Мурманская область"]
["Ненецкий автономный округ"]
["Нижегородская область"]
["Новгородская область"]
["Новосибирская область"]
["Омская область"]
["Оренбургская область"]
["Орловская область"]
["Пензенская область"]
["Пермский край"]
["Приморский край"]
["Псковская область"]
["Республика Адыгея"]
["Республика Алтай"]
["Республика Башкортостан"]
["Республика Бурятия"]
["Республика Дагестан"]
["Республика Ингушетия"]
["Республика Калмыкия"]
["Республика Карелия"]
["Республика Коми"]
["Республика Крым"]
["Республика Марий Эл"]
["Республика Мордовия"]
["Республика Саха (Якутия)"]
["Республика Северная Осетия-Алания"]
["Республика Татарстан"]
["Республика Тыва"]
["Республика Хакасия"]
["Ростовская область"]
["Рязанская область"]
["Самарская область"]
["Саратовская область"]
["Сахалинская область"]
["Свердловская область"]
["Смоленская область"]
["Ставропольский край"]
["Тамбовская область"]
["Тверская область"]
["Томская область"]
["Тульская область"]
["Тюменская область"]
["Удмуртская республика"]
["Ульяновская область"]
["Хабаровский край"]
["Ханты-Мансийский автономный округ"]
["Челябинская область"]
["Чеченская республика"]
["Чувашская республика"]
["Чукотский автономный округ"]
["Ямало-Ненецкий автономный округ"]
["Ярославская область"]

{"sheet":"modfrmSelectData","index":25,"n_rows":0,"n_cols":0,"rows_kept":0,"cut":false,"hidden":true,"merged":[]}

{"sheet":"modList06","index":26,"n_rows":0,"n_cols":0,"rows_kept":0,"cut":false,"hidden":true,"merged":[]}

{"sheet":"modList01","index":27,"n_rows":0,"n_cols":0,"rows_kept":0,"cut":false,"hidden":true,"merged":[]}

{"sheet":"modList08","index":28,"n_rows":0,"n_cols":0,"rows_kept":0,"cut":false,"hidden":true,"merged":[]}

{"sheet":"et_union_hor","index":29,"n_rows":92,"n_cols":34,"rows_kept":92,"cut":false,"hidden":true,"merged":[[77,4,77,17],[78,20,84,20],[78,21,84,21],[81,7,82,7],[78,6,78,15],[77,3,91,3],[77,28,91,28],[80,4,83,4],[80,5,83,5],[80,6,83,6],[80,18,83,18],[81,8,82,8],[87,4,90,4],[87,5,90,5],[87,6,90,6],[87,18,90,18],[88,8,89,8],[88,9,89,9],[88,10,89,10],[80,11,80,12],[87,11,87,12],[85,6,85,15],[81,9,82,9],[81,10,82,10],[85,20,91,20],[85,21,91,21],[88,7,89,7],[67,3,73,3],[67,28,73,28],[68,4,68,15],[71,4,71,15],[67,4,67,17],[68,20,70,20],[68,21,70,21],[71,20,73,20],[71,21,73,21],[50,3,50,5],[50,6,51,6],[14,2,15,2],[14,3,15,3],[14,4,15,4],[19,2,20,2],[19,5,20,5],[34,6,35,6],[19,6,20,6],[49,3,49,6],[34,7,35,7],[34,8,35,8],[34,9,35,9],[28,8,29,8],[28,9,29,9],[19,7,20,7],[28,3,30,3],[28,4,30,4],[28,5,30,5],[28,6,29,6],[28,7,29,7]]}
[]
[]
["et_Comm"]
[]
[]
[]
["et_List04"]
[]
[]
[]
[]
[]
["et_List09_0"]
[]
[null,"auto",null,1,null,null,0,null,null,"0",null,null,{"$f":"mergeValue(H15)","v":0},null,null,{"$f":"IF(ISERROR(MATCH(MID(Q15,1,250),MID(note_ter,1,250),0)),\"n\",\"y\")","v":"y"},null,{"$f":"K15&\"(\"&L15&\")\"","v":"()"}]
[null,null,null,null,null,null,null,"Добавить МР"]
[]
["et_List09_1"]
[]
[null,"auto",null,null,null,null,0,null,null,"0",null,null,{"$f":"mergeValue(H20)","v":0},null,null,null,null,{"$f":"K20&\"(\"&L20&\")\"","v":"()"}]
[null,null,null,null,null,null,null,null,null,null,"Добавить МО"]
[]
["et_List09_2"]
[]
[null,"auto",null,null,null,null,null,null,null,0,null,null,{"$f":"mergeValue(H25)","v":0},null,null,null,null,{"$f":"K25&\" (\"&L25&\")\"","v":" ()"}]
[]
["et_List07_1"]
[]
[null,null,null,"1",null,"нет",null,1,null,"нет",null,"1",null,null,null,null,null,null,null,null,null,null,null,null,"a",1705000]
[null,null,null,null,null,null,null,null,null,null,null,null,"Добавить централизованную систему коммунальной инфраструктуры"]
[null,null,null,null,null,null,null,null,"Добавить описание территории оказания услуг"]
[]
["et_List07_4"]
[]
[null,null,null,null,null,null,null,1,null,"нет",null,"1",null,null,null,null,null,null,null,null,null,null,null,null,"a",1705000]
[null,null,null,null,null,null,null,null,null,null,null,null,"Добавить централизованную систему коммунальной инфраструктуры"]
[]
["et_List07_5"]
[]
[null,null,null,null,null,null,null,null,null,null,null,"1",null,null,null,null,null,null,null,null,null,null,null,null,"a",1705000]
[]
[]
["et_List03"]
[]
["3","",null,null,null,null,null,null,null,null,null,null,{"$f":"IF(ISERROR(INDEX(kind_of_nameforms,MATCH(E45,kind_of_forms,0),1)),\"\",INDEX(kind_of_nameforms,MATCH(E45,kind_of_forms,0),1))","v":""}]
[]
["et_List02_st","et_List02_ter","et_List02_mr","et_List02_mo"]
[]
[]
[null,null,null,"Форма 1.0.1"]
[null,null,null,"Параметры формы",null,null,"Описание параметров формы"]
["\\",null,null,"№ п/п",null,"Информация"]
[null,null,null,"1",2,3,4]
[null,null,null,1,"Дата заполнения/внесения изменений",{"$f":"IF(form_up_date=\"\",\"\",form_up_date)","v":"27.04.2021"},"Указывается календарная дата первичного заполнения или внесения изменений в форму в виде «ДД.ММ.ГГГГ»."]
[null,null,null,"2.1","Наименование централизованной системы коммунальной инфраструктуры",null,"Указывается наименование централизованной системы холодного водоснабжения/горячего водоснабжения/водоотведения/теплоснабжения, к которой относится размещаемая информация.\nВ случае наличия нескольких централизованных систем коммунальной инфраструктуры, информация по каждой из них указывается в отдельной строке. "]
[null,null,null,"3.1","Наименование регулируемого вида деятельности",null,"Указывается наименование вида регулируемой деятельности."]
[null,null,null,"4.1","Территория оказания услуги по регулируемому виду деятельности","x"]
[null,null,null,{"$f":"D57&\".1\"","v":"4.1.1"},"Субъект РФ",{"$f":"IF(region_name=\"\",\"\",region_name)","v":"Иркутская область"},"Указывается наименование субъекта Российской Федерации"]
[null,null,null,"4.1.1.1","муниципальный район",null,"Указывается наименование муниципального района, на территории которого организация оказывает услуги по регулируемому виду деятельности."]
[null,null,null,"4.1.1.1.1","муниципальное образование",null,"Указывается наименование и код муниципального района, муниципального образования в соответствии с Общероссийским классификатором территорий муниципальных образований (далее - ОКТМО), входящего в муниципальный район, на территории которого организация оказывает услуги по регулируемому виду деятельности.\nВ случае оказания услуг по регулируемому виду деятельности на территории нескольких муниципальных районов (муниципальных образований) данные по каждому их них указываются в отдельной строке."]
[]
[]
[]
[]
[]
["et_List05_4"]
[]
[null,null,null,"1",null,null,null,null,null,null,null,null,null,null,null,null,null,null,null,null,null,null,null,null,null,null,null,null,null,null,"",null,"NOTSHOW",3]
[null,null,null,null,"Информация об объемах товаров и услуг, их стоимости и способах приобретения у организаций, в том числе:",null,null,null,null,null,null,null,null,null,null,null,{"$f":"SUMIF(T70:T71,\"i\",Q70:Q71)","v":0},null,"Указывается сумма стоимости приобретения товаров и услуг у организаций, сумма оплаты услуг которых превышает 20% суммы расходов на капитальный и текущий ремонт основных производственных средства","i",1,{"$f":"INDEX(List01_flag_index_1,1,MATCH(A68,List01_NumberColumns,0))","v":{"$error":"#N/A"}}]
[null,null,null,null,null,0]
[]
[null,null,null,null,"Расходы на услуги производственного характера, выполняемые по договорам с организациями на проведение регламентных работ в рамках технологического процесса. Из них товары и услуги, приобретенные у организаций, сумма оплаты услуг которых превышает 20% суммы расходов по статье:",null,null,null,null,null,null,null,null,null,null,null,{"$f":"SUMIF(T73:T74,\"i\",Q73:Q74)","v":0},null,"Указывается сумма стоимости приобретения товаров и услуг у организаций, сумма оплаты услуг которых превышает 20% суммы расходов на капитальный и текущий ремонт основных производственных средства","i",2,{"$f":"INDEX(List01_flag_index_2,1,MATCH(A68,List01_NumberColumns,0))","v":{"$error":"#N/A"}}]
[null,null,null,null,null,0]
[]
[]
["et_List05_4"]
[]
[null,null,null,"1",null,null,null,null,null,null,null,null,null,null,null,null,null,null,null,null,null,null,null,null,null,null,null,null,null,null,"",null,"NOTSHOW",3]
[null,null,null,null,null,1,"Информация об объемах товаров и услуг, их стоимости и способах приобретения у организаций, в том числе:",null,null,null,null,null,null,null,null,null,{"$f":"SUMIF(T80:T85,\"i\",Q80:Q85)","v":0},null,"Указывается сумма стоимости приобретения товаров и услуг у организаций, сумма оплаты услуг которых превышает 20% суммы расходов на капитальный и текущий ремонт основных производственных средства","i",1,{"$f":"INDEX(List01_flag_index_1,1,MATCH(A78,List01_NumberColumns,0))","v":{"$error":"#N/A"}}]
[null,null,null,null,null,0]
[null,null,null,null,null,"1.1",null,null,"1","Итого по поставщику, в том числе","х","х",null,"х","х","х",{"$f":"SUM(Q82:Q84)","v":0},{"$f":"nerr(Q81/List01_costs_OPS)*100","v":0},"Указывается информация отдельно по организациям, сумма оплаты услуг которых превышает 20% суммы расходов на капитальный и текущий ремонт основных производственных средства.\nСпособ приобретения определяется из перечня: Торги/аукционы; Прямые договора без торгов; Прочее\nВ случае наличия нескольких поставщиков, договоров, товаров и (или) услуг информация по ним указывается в отдельных строках.\n","i"]
[null,null,null,null,null,null,null,null,"1.1",null,null,null,"1",null,null,null,null,{"$f":"nerr(costs_OPS/List01_costs_OPS)*100","v":0}]
[null,null,null,null,null,null,null,null,null,null,null,null,null,"Добавить товар/услугу"]
[null,null,null,null,null,null,null,null,null,"Добавить способ"]
[null,null,null,null,null,null,"Добавить поставщика"]
[null,null,null,null,null,2,"Расходы на услуги производственного характера, выполняемые по договорам с организациями на проведение регламентных работ в рамках технологического процесса. Из них товары и услуги, приобретенные у организаций, сумма оплаты услуг которых превышает 20% суммы расходов по статье:",null,null,null,null,null,null,null,null,null,{"$f":"SUMIF(T87:T92,\"i\",Q87:Q92)","v":0},null,"Указывается сумма стоимости приобретения товаров и услуг у организаций, сумма оплаты услуг которых превышает 20% суммы расходов на услуги производственного характера","i",2,{"$f":"INDEX(List01_flag_index_2,1,MATCH(A78,List01_NumberColumns,0))","v":{"$error":"#N/A"}}]
[null,null,null,null,null,0]
[null,null,null,null,null,"2.1",null,null,"1","Итого по поставщику, в том числе","х","х",null,"х","х","х",{"$f":"SUM(Q89:Q91)","v":0},{"$f":"nerr(Q88/List01_costs_OPS)*100","v":0},"Указывается информация отдельно по организациям, сумма оплаты услуг которых превышает 20% суммы расходов на услуги производственного характера.\nСпособ приобретения определяется из перечня: Торги/аукционы; Прямые договора без торгов; Прочее\nВ случае наличия нескольких поставщиков, договоров, товаров и (или) услуг информация по ним указывается в отдельных строках.","i"]
[null,null,null,null,null,null,null,null,"1.1",null,null,null,"1",null,null,null,null,{"$f":"nerr(costs_OPS/List01_costs_OPS)*100","v":0}]
[null,null,null,null,null,null,null,null,null,null,null,null,null,"Добавить товар/услугу"]
[null,null,null,null,null,null,null,null,null,"Добавить способ"]
[null,null,null,null,null,null,"Добавить поставщика"]

{"sheet":"et_union_vert","index":30,"n_rows":0,"n_cols":0,"rows_kept":0,"cut":false,"hidden":true,"merged":[]}

{"sheet":"modList00","index":31,"n_rows":0,"n_cols":0,"rows_kept":0,"cut":false,"hidden":true,"merged":[]}

{"sheet":"modList02","index":32,"n_rows":0,"n_cols":0,"rows_kept":0,"cut":false,"hidden":true,"merged":[]}

{"sheet":"modList03","index":33,"n_rows":0,"n_cols":0,"rows_kept":0,"cut":false,"hidden":true,"merged":[]}

{"sheet":"modList04","index":34,"n_rows":0,"n_cols":0,"rows_kept":0,"cut":false,"hidden":true,"merged":[]}

{"sheet":"modList09","index":35,"n_rows":0,"n_cols":0,"rows_kept":0,"cut":false,"hidden":true,"merged":[]}

{"sheet":"modHTTP","index":36,"n_rows":0,"n_cols":0,"rows_kept":0,"cut":false,"hidden":true,"merged":[]}

{"sheet":"modfrmRegion","index":37,"n_rows":0,"n_cols":0,"rows_kept":0,"cut":false,"hidden":true,"merged":[]}

{"sheet":"MR_LIST","index":38,"n_rows":0,"n_cols":0,"rows_kept":0,"cut":false,"hidden":true,"merged":[]}

{"sheet":"REESTR_VT","index":39,"n_rows":0,"n_cols":0,"rows_kept":0,"cut":false,"hidden":true,"merged":[]}

{"sheet":"REESTR_VED","index":40,"n_rows":4,"n_cols":2,"rows_kept":4,"cut":false,"hidden":true,"merged":[]}
["ID_TARIFF_NAME","VED_NAME"]
[4189714,"Водоотведение"]
[4189713,"Транспортировка"]
[4189712,"Подключение (технологическое присоединение) к централизованной системе водоотведения"]

{"sheet":"modfrmReestrObj","index":41,"n_rows":0,"n_cols":0,"rows_kept":0,"cut":false,"hidden":true,"merged":[]}

{"sheet":"DataOrg","index":42,"n_rows":0,"n_cols":0,"rows_kept":0,"cut":false,"hidden":true,"merged":[]}

{"sheet":"modfrmReestr","index":43,"n_rows":0,"n_cols":0,"rows_kept":0,"cut":false,"hidden":true,"merged":[]}

{"sheet":"modUpdTemplMain","index":44,"n_rows":0,"n_cols":0,"rows_kept":0,"cut":false,"hidden":true,"merged":[]}

{"sheet":"REESTR_ORG","index":45,"n_rows":175,"n_cols":10,"rows_kept":175,"cut":false,"hidden":true,"merged":[]}
["№","REGION_ID","REGION_NAME","RST_ORG_ID","ORG_NAME","INN_NAME","KPP_NAME","ORG_START_DATE","ORG_END_DATE"]
[1,"2661","Иркутская область","26372374","АО \"Ангарская нефтехимическая компания\"","3801009466","997250001","11-08-1993 00:00:00",null,"VO"]
[2,"2661","Иркутская область","26372375","АО \"Ангарский Электролизный Химический Комбинат\"","3801098402","380101001","01-09-2008 00:00:00",null,"VO"]
[3,"2661","Иркутская область","30358154","АО \"Главное управление жилищно-коммунального хозяйства\"","5116000922","381145001","13-05-2009 00:00:00",null,"VO"]
[4,"2661","Иркутская область","26536587","АО \"Группа \"Илим\"","7840346335","380402001","27-09-2006 00:00:00",null,"VO"]
[5,"2661","Иркутская область","26530833","АО \"Группа \"Илим\"","7840346335","381702001","27-09-2006 00:00:00",null,"VO"]
[6,"2661","Иркутская область","30947840","АО \"МАИРТА\"","3811067770","381101001","30-05-2001 00:00:00",null,"VO"]
[7,"2661","Иркутская область","26380015","АО \"Саянскхимпласт\"","3814007314","381401001","13-10-1998 00:00:00",null,"VO"]
[8,"2661","Иркутская область","26505643","АО \"Усолье-Сибирский химфармзавод\"","3819012188","385101001","02-09-2002 00:00:00",null,"VO"]
[9,"2661","Иркутская область","31061738","Акционерное общество \"Братский завод металлоконструкций\"","3805100042","380501001","11-01-1993 00:00:00",null,"VO"]
[10,"2661","Иркутская область","30881825","Акционерное общество работников народное предприятие \"Концессия-Илим\"","3817047971","381701001","31-01-2017 00:00:00",null,"VO"]
[11,"2661","Иркутская область","26375610","Восточно-Сибирская дирекция по тепловодоснабжению - структурное подразделение центральной дирекции по тепловодоснабжению филиала ОАО \"РЖД\"","7708503727","381045020","23-09-2003 00:00:00",null,"VO"]
[12,"2661","Иркутская область","26372430","ЗАО \"Санаторий Усть-Кут\"","3818000870","381801001",null,null,"VO"]
[13,"2661","Иркутская область","26535508","ИП Скрябин В.Г.","384300333790","отсутствует","08-12-2009 00:00:00",null,"VO"]
[14,"2661","Иркутская область","26381585","ИП Шаповалов В.Н.","850400333946","отсутствует","01-11-2007 00:00:00",null,"VO"]
[15,"2661","Иркутская область","31401664","КМП \"Автодор\" УКМО (ГП)","3818043560","381801001","07-12-2015 00:00:00",null,"VO"]
[16,"2661","Иркутская область","28086512","МП \"Дирекция городской инфраструктуры\" МО г. Братска","3804045543","380401001","09-06-2011 00:00:00",null,"VO"]
[17,"2661","Иркутская область","30383691","МП \"ЖКХ 2015\"","3817045068","381701001","17-07-2015 00:00:00",null,"VO"]
[18,"2661","Иркутская область","28445431","МУП \" ЖКХ Калтук\"","3847000561","384701001","17-04-2013 00:00:00",null,"VO"]
[19,"2661","Иркутская область","31252938","МУП \"Вихоревский городской транспорт\"","3805732122","380501001","15-12-2017 00:00:00",null,"VO"]
[20,"2661","Иркутская область","26372455","МУП \"Водоканал\"","3821005886","382101001","16-04-1994 00:00:00",null,"VO"]
[21,"2661","Иркутская область","26372399","МУП \"Водоканал\" г.Иркутска","3807000276","381150001","27-03-1992 00:00:00",null,"VO"]
[22,"2661","Иркутская область","26372410","МУП \"Водоканал-Сервис\"","3814007427","381401001",null,null,"VO"]
[23,"2661","Иркутская область","28969215","МУП \"ЖКХ Балахнинский\"","3802016787","380201001","21-01-2015 00:00:00",null,"VO"]
[24,"2661","Иркутская область","28445420","МУП \"ЖКХ Турма\"","3847000593","384701001","21-05-2013 00:00:00",null,"VO"]
[25,"2661","Иркутская область","31222886","МУП \"Жилищно-коммунальное хозяйство Ручейское\"","3818048590","381801001","06-03-2018 00:00:00",null,"VO"]
[26,"2661","Иркутская область","28980193","МУП \"ЖилкомСервис\"","3802016949","380201001","30-01-2015 00:00:00",null,"VO"]
[27,"2661","Иркутская область","28827705","МУП \"Жилфонд\"","3802013722","380201001","21-05-2014 00:00:00",null,"VO"]
[28,"2661","Иркутская область","26448306","МУП \"КОС БМО\"","3837004905","383701001","19-03-2008 00:00:00",null,"VO"]
[29,"2661","Иркутская область","26513356","МУП \"Карахунское ЖКХ\"","3823032405","382301001","20-02-2009 00:00:00",null,"VO"]
[30,"2661","Иркутская область","26372473","МУП \"Озернинское ЖКХ\"","3823020255","382301001",null,null,"VO"]
[31,"2661","Иркутская область","31253256","МУП \"Покосное\"","3805732958","380501001","17-07-2018 00:00:00",null,"VO"]
[32,"2661","Иркутская область","30858357","МУП \"Прометей\"","3847000924","384701001","14-05-2014 00:00:00",null,"VO"]
[33,"2661","Иркутская область","31041730","МУП \"Районное коммунальное управление\"","3805731337","380501001","22-06-2017 00:00:00",null,"VO"]
[34,"2661","Иркутская область","31399441","МУП \"Районные коммунальные системы\"","3805734289","380501001","30-07-2019 00:00:00",null,"VO"]
[35,"2661","Иркутская область","31477661","МУП \"Сервисный центр\"","3819019200","385101001",null,null,"VO"]
[36,"2661","Иркутская область","26493505","МУП \"ТВС п.Перевоз\"","3802011958","380201001","02-10-2008 00:00:00",null,"VO"]
[37,"2661","Иркутская область","26356490","МУП \"Тепловодоканал\"","3802009268","380201001","13-12-2002 00:00:00",null,"VO"]
[38,"2661","Иркутская область","30360689","МУП \"Тепловодоцентраль\"","3802017156","380201001","28-04-2015 00:00:00",null,"VO"]
[39,"2661","Иркутская область","26381583","МУП \"Теплотехник\"","8501006590","850101001",null,null,"VO"]
[40,"2661","Иркутская область","26380050","МУП \"Транзит-Аква\"","3851006904","385101001","27-08-2012 00:00:00",null,"VO"]
[41,"2661","Иркутская область","30477728","МУП \"Удачный\"","3811042134","381101001","15-06-2015 00:00:00",null,"VO"]
[42,"2661","Иркутская область","30390730","МУП \"ЭЛЬБРУС\"","3851993288","385101001","19-03-2014 00:00:00",null,"VO"]
[43,"2661","Иркутская область","31225744","МУП \"ЯЖКХ\"","3805733197","380501001","11-09-2018 00:00:00",null,"VO"]
[44,"2661","Иркутская область","26372373","МУП Ангарского городского округа \"Ангарский Водоканал\"","3801006828","380101001","12-05-1992 00:00:00",null,"VO"]
[45,"2661","Иркутская область","31280176","МУП Управляющая компания \"Игирма\"","3805733180","380501001","12-09-2018 00:00:00",null,"VO"]
[46,"2661","Иркутская область","28072605","МУСХП \"Центральное\"","3816006186","381601001",null,null,"VO"]
[47,"2661","Иркутская область","30478884","Муниципально унитарное предприятие  \"Управляющая компания Спектр\"","3805728694","380501001",null,null,"VO"]
[48,"2661","Иркутская область","28869387","Муниципальное предприятие \"Жилищно-коммунальное хозяйство Невон\" Невонского муниципального предприятия","3817044233","381701001","23-05-2014 00:00:00",null,"VO"]
[49,"2661","Иркутская область","29646328","Муниципальное предприятие \"Остров\"","3818032110","381801001",null,null,"VO"]
[50,"2661","Иркутская область","28861144","Муниципальное унитарное предприятие\"Жилищно-коммунальноехозяйство Спектр\" Подьеланского муниципального образования","3817998342","381701001",null,null,"VO"]
[51,"2661","Иркутская область","26505381","ОАО \"Байкальский целлюлозно-бумажный комбинат\"","3837049102","383701001","09-12-1992 00:00:00",null,"VO"]
[52,"2661","Иркутская область","26640106","ОАО \"Облжилкомхоз\"","3808133575","384901001","09-02-2006 00:00:00",null,"VO"]
[53,"2661","Иркутская область","28504250","ОАО \"РЖД\"  (Восточно-Сибирская дирекция по тепловодоснабжению)","7708503727","381045021","23-09-2003 00:00:00",null,"VO"]
[54,"2661","Иркутская область","26372385","ОАО \"Санаторий Братское взморье\"","3805100973","380501001","28-08-1993 00:00:00",null,"VO"]
[55,"2661","Иркутская область","26356630","ОГБУСО \"Заларинский специальный дом - интернат для престарелых и инвалидов\"","3825001498","382501001","01-10-2010 00:00:00",null,"VO"]
[56,"2661","Иркутская область","27584857","ООО  \" ЮртКомХоз\"","3815011391","381501001",null,null,"VO"]
[57,"2661","Иркутская область","30365354","ООО  \"Западный филиал\"","3816022124","381601001","01-07-2015 00:00:00",null,"VO"]
[58,"2661","Иркутская область","31290864","ООО \"АКВА плюс\"","3805733616","380501001","13-02-2019 00:00:00",null,"VO"]
[59,"2661","Иркутская область","31390088","ООО \"АКВА-СЕРВИС\"","3816029761","381601001","16-04-2018 00:00:00",null,"VO"]
[60,"2661","Иркутская область","28932345","ООО \"Авангард\"","3851003692","385101001","29-06-2011 00:00:00","30-04-2020 00:00:00","VO"]
[61,"2661","Иркутская область","26765909","ООО \"АкваСервис\"","3851001198","385101001","20-08-2010 00:00:00",null,"VO"]
[62,"2661","Иркутская область","30866409","ООО \"АкваСервис\"","3851017744","385101001","29-06-2016 00:00:00",null,"VO"]
[63,"2661","Иркутская область","28147772","ООО \"Акватранс\"","3848006615","384801001","21-11-2012 00:00:00",null,"VO"]
[64,"2661","Иркутская область","31383436","ООО \"Акватрейд\"","3818049315","381801001","02-07-2019 00:00:00",null,"VO"]
[65,"2661","Иркутская область","26510575","ООО \"АктивЭнерго\"","3808159809","384901001","23-11-2007 00:00:00",null,"VO"]
[66,"2661","Иркутская область","27544464","ООО \"БЛАГО\"","3818029492","381801001","26-09-2011 00:00:00",null,"VO"]
[67,"2661","Иркутская область","31417272","ООО \"Байкальская энергетическая компания\"","3808229774","380801001","27-05-2013 00:00:00",null,"VO"]
[68,"2661","Иркутская область","27570092","ООО \"Берёзовый\"","3851004456","385101001","20-10-2011 00:00:00",null,"VO"]
[69,"2661","Иркутская область","30978661","ООО \"БиоТеплоЭнерго\"","3808195606","380801001","28-06-2016 00:00:00",null,"VO"]
[70,"2661","Иркутская область","26380023","ООО \"Биоочистка\"","3815011881","381501001",null,null,"VO"]
[71,"2661","Иркутская область","31157914","ООО \"ВОДОКАНАЛ\"","3818046963","381801001","25-03-2016 00:00:00",null,"VO"]
[72,"2661","Иркутская область","28441350","ООО \"Вектор\"","3816015695","381601001","20-05-2013 00:00:00",null,"VO"]
[73,"2661","Иркутская область","31345984","ООО \"Вода плюс\"","3817049295","381701001","05-07-2018 00:00:00",null,"VO"]
[74,"2661","Иркутская область","30375237","ООО \"Водоканал\"","3816022438","381601001","03-09-2015 00:00:00",null,"VO"]
[75,"2661","Иркутская область","31077969","ООО \"Грандсервис\"","3805728447","380501001","27-08-2015 00:00:00",null,"VO"]
[76,"2661","Иркутская область","30812025","ООО \"ЖКХ\"","3849057531","384901001",null,null,"VO"]
[77,"2661","Иркутская область","31090913","ООО \"ЖКХ\"","3851019533","385101001","27-04-2017 00:00:00",null,"VO"]
[78,"2661","Иркутская область","31255094","ООО \"ЖКХ-2018\"","3817049538","381701001","24-09-2018 00:00:00",null,"VO"]
[79,"2661","Иркутская область","27439797","ООО \"ЖЭУ\" Химки\"","3834011904","383401001","02-06-2006 00:00:00",null,"VO"]
[80,"2661","Иркутская область","30877129","ООО \"Жилкомсервис\"","3808197297","380801001","02-11-2016 00:00:00",null,"VO"]
[81,"2661","Иркутская область","30802449","ООО \"ИСТОК\"","3805729000","380501001","29-12-2015 00:00:00",null,"VO"]
[82,"2661","Иркутская область","30375249","ООО \"Игнино\"","3814019550","381401001","28-11-2014 00:00:00",null,"VO"]
[83,"2661","Иркутская область","30858060","ООО \"Интехцентр\"","3816997900","381601001",null,null,"VO"]
[84,"2661","Иркутская область","28427676","ООО \"Иркутские Коммунальные Системы\"","3808219007","381201001","23-05-2011 00:00:00",null,"VO"]
[85,"2661","Иркутская область","27505941","ООО \"Искра\"","3819021591","385101001","04-12-2008 00:00:00","20-05-2020 00:00:00","VO"]
[86,"2661","Иркутская область","27113644","ООО \"КАНВОД\"","3808053746","382701001",null,null,"VO"]
[87,"2661","Иркутская область","30934439","ООО \"КОНСТЭНЕРГОТРАНС\"","3817047467","381701001","22-08-2016 00:00:00",null,"VO"]
[88,"2661","Иркутская область","30378582","ООО \"КОС\"","3851994436","385101001","06-10-2014 00:00:00","05-11-2020 00:00:00","VO"]
[89,"2661","Иркутская область","30857962","ООО \"КТ-РЕСУРС\"","3808195620","380801001",null,null,"VO"]
[90,"2661","Иркутская область","28966207","ООО \"КУК ЖКХ-2\"","3811170143","381101001","31-07-2013 00:00:00",null,"VO"]
[91,"2661","Иркутская область","31397494","ООО \"Кедр\"","3851003903","385101001","02-08-2011 00:00:00",null,"VO"]
[92,"2661","Иркутская область","27666486","ООО \"Кобляковское\"","3823034064","382301001","02-08-2011 00:00:00",null,"VO"]
[93,"2661","Иркутская область","27570144","ООО \"КомСервис\"","3834015480","383401001","21-04-2011 00:00:00","22-01-2021 00:00:00","VO"]
[94,"2661","Иркутская область","26755699","ООО \"Коммунальные услуги\"","3819022348","385101001","28-04-2009 00:00:00",null,"VO"]
[95,"2661","Иркутская область","26356522","ООО \"Компания Востсибуголь\" \"Разрез \"Тулунуголь\"","3808069986","381643001","24-12-2009 00:00:00",null,"VO"]
[96,"2661","Иркутская область","31206546","ООО \"Комплекс коммунальных систем\"","3810075070","381001001","27-04-2018 00:00:00",null,"VO"]
[97,"2661","Иркутская область","26647667","ООО \"МАЯК\"","3815015660","381501001","25-05-2010 00:00:00",null,"VO"]
[98,"2661","Иркутская область","30409908","ООО \"Межмуниципальное предприятие коммунального комплекса\"","3802017195","380201719","24-06-2015 00:00:00",null,"VO"]
[99,"2661","Иркутская область","27751980","ООО \"Надежда\"","3823034177","382301001","05-09-2011 00:00:00","16-07-2020 00:00:00","VO"]
[100,"2661","Иркутская область","27871088","ООО \"Наш дом\"","3834015521","383401001","26-01-2011 00:00:00",null,"VO"]
[101,"2661","Иркутская область","28504015","ООО \"Нижнеудинское коммунальное управление\"","3816016378","381601001","14-11-2013 00:00:00",null,"VO"]
[102,"2661","Иркутская область","28005324","ООО \"НордТрейд\"","3818028379","381801001","16-11-2010 00:00:00",null,"VO"]
[103,"2661","Иркутская область","31330016","ООО \"ОВУК\"","3847000762","384701001","04-12-2013 00:00:00",null,"VO"]
[104,"2661","Иркутская область","28453158","ООО \"ПК БРАСС\"","7813376549","385101001","23-04-2007 00:00:00",null,"VO"]
[105,"2661","Иркутская область","31464006","ООО \"Парабель-2020\"","3817050396","381701001","30-01-2020 00:00:00",null,"VO"]
[106,"2661","Иркутская область","26372433","ООО \"Прогресс-сервис\"","3818026692","381801001","16-10-2009 00:00:00",null,"VO"]
[107,"2661","Иркутская область","31064806","ООО \"РГК\"","3805731979","380501001","23-11-2017 00:00:00",null,"VO"]
[108,"2661","Иркутская область","31423809","ООО \"РОСТ\"","3817050036","381701001","03-06-2019 00:00:00",null,"VO"]
[109,"2661","Иркутская область","27101530","ООО \"РУК ЖКХ\"","3834015306","383401001","29-03-2011 00:00:00",null,"VO"]
[110,"2661","Иркутская область","31023716","ООО \"Ресурс\"","3817048196","381701001","21-04-2017 00:00:00",null,"VO"]
[111,"2661","Иркутская область","30845338","ООО \"СТЭК\"","3808195596","380801001","28-06-2016 00:00:00",null,"VO"]
[112,"2661","Иркутская область","30359920","ООО \"Сервис\"","3808189673","380801001","21-04-2015 00:00:00",null,"VO"]
[113,"2661","Иркутская область","26372405","ООО \"Сетевая компания \"Иркут\"","3810035487","381001001","28-05-2004 00:00:00",null,"VO"]
[114,"2661","Иркутская область","27573731","ООО \"СибТеплоСервис\"","3814016950","381401001","14-01-2011 00:00:00",null,"VO"]
[115,"2661","Иркутская область","31335326","ООО \"Сибирская строительная компания\"","3811113473","381101001","30-08-2007 00:00:00",null,"VO"]
[116,"2661","Иркутская область","31023171","ООО \"Система ВодоОтведения\"","3851020899","385101001","20-11-2017 00:00:00",null,"VO"]
[117,"2661","Иркутская область","30354079","ООО \"Слюдянское\"","3810058290","381001001","26-05-2015 00:00:00",null,"VO"]
[118,"2661","Иркутская область","28454139","ООО \"СпецЭнергоРесурс\"","3817042772","381701001","05-07-2013 00:00:00","13-11-2020 00:00:00","VO"]
[119,"2661","Иркутская область","31349860","ООО \"Стандарткомстрой\"","3808130454","384901001","13-12-2005 00:00:00",null,"VO"]
[120,"2661","Иркутская область","31189292","ООО \"Сток-Сервис\"","3814035939","381401001","05-02-2018 00:00:00",null,"VO"]
[121,"2661","Иркутская область","26552069","ООО \"Стоки\"","3818017610","381801001","08-10-2004 00:00:00",null,"VO"]
[122,"2661","Иркутская область","30399432","ООО \"Стоки\"","3848006686","384801001","05-12-2012 00:00:00",null,"VO"]
[123,"2661","Иркутская область","28903352","ООО \"ТЕПЛОСЕРВИС\"","3834016606","383401001","25-06-2014 00:00:00",null,"VO"]
[124,"2661","Иркутская область","28966192","ООО \"ТЕХНОКОМ\"","3811181360","381101001","22-07-2014 00:00:00",null,"VO"]
[125,"2661","Иркутская область","30867640","ООО \"ТЭТК\"","3851017487","385101001","04-05-2016 00:00:00",null,"VO"]
[126,"2661","Иркутская область","30933991","ООО \"ТеплоМиг\"","3817047837","381701001","12-12-2016 00:00:00",null,"VO"]
[127,"2661","Иркутская область","31100379","ООО \"ТеплоРесурс\"","3818046970","381801001","25-03-2016 00:00:00",null,"VO"]
[128,"2661","Иркутская область","30985847","ООО \"Тепловодоканал\"","3818048128","381801001",null,null,"VO"]
[129,"2661","Иркутская область","30382397","ООО \"Тепловодосбыт\"","3851999346","385101001","24-05-2013 00:00:00",null,"VO"]
[130,"2661","Иркутская область","31237450","ООО \"Тепловодснаб\"","3818048287","381801001","21-09-2017 00:00:00",null,"VO"]
[131,"2661","Иркутская область","30857845","ООО \"Теплоисток\"","3805729899","380501001",null,null,"VO"]
[132,"2661","Иркутская область","26353587","ООО \"Теплоэнергосервис\"","3820012880","382001001","21-01-2008 00:00:00",null,"VO"]
[133,"2661","Иркутская область","28871736","ООО \"ТрансТехРесурс\"","3816014476","381601001","05-10-2012 00:00:00",null,"VO"]
[134,"2661","Иркутская область","31030680","ООО \"Тубинский\"","3817048573","381701001","09-10-2017 00:00:00",null,"VO"]
[135,"2661","Иркутская область","27522005","ООО \"Тыретские инженерные сети\"","3814016968","381401001","15-06-2011 00:00:00",null,"VO"]
[136,"2661","Иркутская область","26755257","ООО \"УК \" Энергия\"","3831004169","383101001","29-12-2005 00:00:00",null,"VO"]
[137,"2661","Иркутская область","30948581","ООО \"УК \"Макском\"","3812090927","381201001","22-08-2006 00:00:00",null,"VO"]
[138,"2661","Иркутская область","26372436","ООО \"УК Водоканал-Сервис\"","3818018814","381801001","23-09-2005 00:00:00",null,"VO"]
[139,"2661","Иркутская область","27438168","ООО \"УК ЖКХ Новоилимск\"","3834015458","383401001",null,null,"VO"]
[140,"2661","Иркутская область","31225695","ООО \"УКС\"","3810062522","381001001","18-02-2016 00:00:00",null,"VO"]
[141,"2661","Иркутская область","30904230","ООО \"Управление жилищно-коммунальными системами\"","3810064110","381001001","13-05-2016 00:00:00",null,"VO"]
[142,"2661","Иркутская область","30353196","ООО \"Управление жилищно-коммунальными системами\"","3810341244","381001001","03-12-2014 00:00:00",null,"VO"]
[143,"2661","Иркутская область","31183602","ООО \"Управляющая компания Северо-Западная\"","3811432462","381101001","26-02-2016 00:00:00",null,"VO"]
[144,"2661","Иркутская область","26505645","ООО \"Усольехимпром\"","3819013576","381950001",null,null,"VO"]
[145,"2661","Иркутская область","26356477","ООО \"Усть-Кутские тепловые сети и котельные\"","3818025152","381801001","30-12-2008 00:00:00",null,"VO"]
[146,"2661","Иркутская область","26380046","ООО \"Утес\"","3851006005","385101001","19-04-2012 00:00:00",null,"VO"]
[147,"2661","Иркутская область","26555200","ООО \"Ушаковская\"","3827026265","382704001","24-10-2007 00:00:00",null,"VO"]
[148,"2661","Иркутская область","31235244","ООО \"Факел\"","3851020017","385101001","18-07-2017 00:00:00",null,"VO"]
[149,"2661","Иркутская область","30907259","ООО \"ХОРС\"","3804999116","380401001","20-04-2017 00:00:00",null,"VO"]
[150,"2661","Иркутская область","26648801","ООО \"Центральная котельная\"","3808092150","381601001","21-10-2010 00:00:00",null,"VO"]
[151,"2661","Иркутская область","30357368","ООО \"Черемховский водоканал\"","3851994299","385101001","08-09-2014 00:00:00",null,"VO"]
[152,"2661","Иркутская область","26372414","ООО \"Энергопром\"","3815012645","381501001","26-09-2007 00:00:00",null,"VO"]
[153,"2661","Иркутская область","28461970","ООО \"Энергосфера-Иркутск\"","3818031413","381801001","10-06-2013 00:00:00",null,"VO"]
[154,"2661","Иркутская область","28829498","ООО \"Южнобайкальское\"","3848006527","384801001",null,null,"VO"]
[155,"2661","Иркутская область","30381073","ООО «Вихоревское управление\"","3805728126","380501001","26-06-2015 00:00:00","26-11-2020 00:00:00","VO"]
[156,"2661","Иркутская область","30380999","ООО «УСОЛЬСКОЕ КОММУНАЛЬНОЕ УПРАВЛЕНИЕ»","3851992774","385101001","23-12-2013 00:00:00",null,"VO"]
[157,"2661","Иркутская область","28007174","ООО Благо","3818028386","381801001",null,null,"VO"]
[158,"2661","Иркутская область","28261220","ООО ЖКХ \"Южное\"","3816014571","381601001","30-10-2012 00:00:00",null,"VO"]
[159,"2661","Иркутская область","30857841","ООО СК \"Ресурс Транзит\"","3811434389","381101001","29-08-2016 00:00:00",null,"VO"]
[160,"2661","Иркутская область","28503958","ООО УК \"Водоканал\"","3851997853","385101001","25-10-2013 00:00:00",null,"VO"]
[161,"2661","Иркутская область","26380012","ООО УК \"СОЛ\"","3808172790","380801001",null,null,"VO"]
[162,"2661","Иркутская область","26372435","ООО УК\"Бирюса\"","3818018652","381801001",null,null,"VO"]
[163,"2661","Иркутская область","29647526","ООО Управляющая компания \"Ния\"","3818042486","381801001","15-01-2015 00:00:00",null,"VO"]
[164,"2661","Иркутская область","30438691","Областное государственное автономное учреждение социального обслуживания \"Марковский геронтологический центр\"","3827000771","382701001",null,null,"VO"]
[165,"2661","Иркутская область","30374996","Общество с ограниченной ответственностью \"ВОДОКАНАЛ КИЕВСКИЙ\"","3805997009","380501001",null,"02-11-2020 00:00:00","VO"]
[166,"2661","Иркутская область","31387011","Общество с ограниченной ответственностью \"Вик\"","3851024043","385101001","08-08-2019 00:00:00",null,"VO"]
[167,"2661","Иркутская область","30408096","Общество с ограниченной ответственностью \"Сетевая компания - Вода\"","3810325210","381001001","04-05-2012 00:00:00",null,"VO"]
[168,"2661","Иркутская область","26781007","ПАО \"Иркутскэнерго\"","3800000220","997450001",null,null,"VO"]
[169,"2661","Иркутская область","26505310","ПАО \"РУСАЛ Братский алюминиевый завод\"","3803100054","997550001","26-11-1992 00:00:00",null,"VO"]
[170,"2661","Иркутская область","27506927","Усть-Ордынское МУП \"Каскад\"","8506007453","850601001","14-02-2011 00:00:00",null,"VO"]
[171,"2661","Иркутская область","30946960","ФГБУ \"ЦЖКУ\" Минобороны России","7729314745","381145002","21-12-2002 00:00:00",null,"VO"]
[172,"2661","Иркутская область","26375629","ФГУП РТРС \"Иркутский ОРТПЦ\"","7717127211","380802002","23-11-2001 00:00:00",null,"VO"]
[173,"2661","Иркутская область","27113703","Филиал \"Иркутское РНУ\" ООО \"Транснефть - Восток\"","3801079671","380102001",null,null,"VO"]
[174,"2661","Иркутская область","30914574","Филиал ФГБУ \"ЦЖКУ\" МИНОБОРОНЫ РОССИИ (по ЦВО)","7729314745","667043001",null,null,"VO"]

{"sheet":"modClassifierValidate","index":46,"n_rows":0,"n_cols":0,"rows_kept":0,"cut":false,"hidden":true,"merged":[]}

{"sheet":"modHyp","index":47,"n_rows":0,"n_cols":0,"rows_kept":0,"cut":false,"hidden":true,"merged":[]}

{"sheet":"modfrmDateChoose","index":48,"n_rows":0,"n_cols":0,"rows_kept":0,"cut":false,"hidden":true,"merged":[]}

{"sheet":"modComm","index":49,"n_rows":0,"n_cols":0,"rows_kept":0,"cut":false,"hidden":true,"merged":[]}

{"sheet":"modThisWorkbook","index":50,"n_rows":0,"n_cols":0,"rows_kept":0,"cut":false,"hidden":true,"merged":[]}

{"sheet":"REESTR_MO","index":51,"n_rows":468,"n_cols":4,"rows_kept":468,"cut":false,"hidden":true,"merged":[]}
["№","МР","МО","МО_ОКТМО"]
[1,"Аларский муниципальный район","Аларский муниципальный район","25605000"]
[2,"Аларский муниципальный район","Аларь","25605402"]
[3,"Аларский муниципальный район","Александровск","25605404"]
[4,"Аларский муниципальный район","Аляты","25605407"]
[5,"Аларский муниципальный район","Ангарское","25605410"]
[6,"Аларский муниципальный район","Бахтай","25605413"]
[7,"Аларский муниципальный район","Егоровск","25605416"]
[8,"Аларский муниципальный район","Забитуй","25605414"]
[9,"Аларский муниципальный район","Зоны","25605419"]
[10,"Аларский муниципальный район","Иваническ","25605422"]
[11,"Аларский муниципальный район","Куйта","25605425"]
[12,"Аларский муниципальный район","Кутулик","25605426"]
[13,"Аларский муниципальный район","Маниловск","25605427"]
[14,"Аларский муниципальный район","Могоенок","25605428"]
[15,"Аларский муниципальный район","Нельхай","25605431"]
[16,"Аларский муниципальный район","Ныгдинское","25605432"]
[17,"Аларский муниципальный район","Табарсук","25605434"]
[18,"Аларский муниципальный район","Тыргетуй","25605437"]
[19,"Ангарский","Ангарский","25703000"]
[20,"Балаганский муниципальный район","Балаганский муниципальный район","25601000"]
[21,"Балаганский муниципальный район","Балаганское","25601403"]
[22,"Балаганский муниципальный район","Балаганское городское поселение","25601151"]
[23,"Балаганский муниципальный район","Биритское","25601405"]
[24,"Балаганский муниципальный район","Заславское","25601410"]
[25,"Балаганский муниципальный район","Коноваловское","25601415"]
[26,"Балаганский муниципальный район","Кумарейское","25601418"]
[27,"Балаганский муниципальный район","Тарнопольское","25601425"]
[28,"Балаганский муниципальный район","Шарагайское","25601435"]
[29,"Баяндаевский муниципальный район","Баяндаевский муниципальный район","25607000"]
[30,"Баяндаевский муниципальный район","Баяндай","25607405"]
[31,"Баяндаевский муниципальный район","Васильевск","25607408"]
[32,"Баяндаевский муниципальный район","Гаханы","25607410"]
[33,"Баяндаевский муниципальный район","Курумчинский","25607414"]
[34,"Баяндаевский муниципальный район","Кырма","25607420"]
[35,"Баяндаевский муниципальный район","Люры","25607424"]
[36,"Баяндаевский муниципальный район","Нагалык","25607428"]
[37,"Баяндаевский муниципальный район","Ользоны","25607432"]
[38,"Баяндаевский муниципальный район","Покровка","25607434"]
[39,"Баяндаевский муниципальный район","Половинка","25607435"]
[40,"Баяндаевский муниципальный район","Тургеневка","25607441"]
[41,"Баяндаевский муниципальный район","Хогот","25607448"]
[42,"Бодайбинский муниципальный район","Артемовское","25602155"]
[43,"Бодайбинский муниципальный район","Балахнинское","25602156"]
[44,"Бодайбинский муниципальный район","Бодайбинский муниципальный район","25602000"]
[45,"Бодайбинский муниципальный район","Бодайбинское","25602101"]
[46,"Бодайбинский муниципальный район","Жуинское","25602402"]
[47,"Бодайбинский муниципальный район","Кропоткинское","25602158"]
[48,"Бодайбинский муниципальный район","Мамаканское","25602162"]
[49,"Боханский муниципальный район","Александровское","25609402"]
[50,"Боханский муниципальный район","Бохан","25609405"]
[51,"Боханский муниципальный район","Боханский муниципальный район","25609000"]
[52,"Боханский муниципальный район","Буреть","25609407"]
[53,"Боханский муниципальный район","Казачье","25609416"]
[54,"Боханский муниципальный район","Каменка","25609419"]
[55,"Боханский муниципальный район","Новая Ида","25609424"]
[56,"Боханский муниципальный район","Олонки","25609429"]
[57,"Боханский муниципальный район","Середкино","25609435"]
[58,"Боханский муниципальный район","Тараса","25609438"]
[59,"Боханский муниципальный район","Тихоновка","25609440"]
[60,"Боханский муниципальный район","Укыр","25609442"]
[61,"Боханский муниципальный район","Хохорск","25609449"]
[62,"Боханский муниципальный район","Шаралдай","25609450"]
[63,"Братский муниципальный район","Большеокинское","25604401"]
[64,"Братский муниципальный район","Братский муниципальный район","25604000"]
[65,"Братский муниципальный район","Вихоревское","25604103"]
[66,"Братский муниципальный район","Добчурское","25604402"]
[67,"Братский муниципальный район","Зябинское","25604456"]
[68,"Братский муниципальный район","Илирское","25604404"]
[69,"Братский муниципальный район","Калтукское","25604407"]
[70,"Братский муниципальный район","Карахунское","25604410"]
[71,"Братский муниципальный район","Кежемское","25604413"]
[72,"Братский муниципальный район","Ключи-Булакское","25604416"]
[73,"Братский муниципальный район","Кобинское","25604457"]
[74,"Братский муниципальный район","Кобляковское","25604422"]
[75,"Братский муниципальный район","Куватское","25604458"]
[76,"Братский муниципальный район","Кузнецовское","25604425"]
[77,"Братский муниципальный район","Межселенные территории Братского муниципального района, на которых расположены земли следующих населенных пунктов: п Тынкобь, п Хвойный","25604701"]
[78,"Братский муниципальный район","Наратайское","25604428"]
[79,"Братский муниципальный район","Озернинское","25604431"]
[80,"Братский муниципальный район","Покоснинское","25604437"]
[81,"Братский муниципальный район","Прибойнинское","25604434"]
[82,"Братский муниципальный район","Прибрежнинское","25604440"]
[83,"Братский муниципальный район","Тангуйское","25604443"]
[84,"Братский муниципальный район","Тарминское","25604445"]
[85,"Братский муниципальный район","Турманское","25604447"]
[86,"Братский муниципальный район","Тэмьское","25604450"]
[87,"Братский муниципальный район","Харанжинское","25604452"]
[88,"Братский муниципальный район","Шумиловское","25604455"]
[89,"Город Братск","Город Братск","25714000"]
[90,"Город Иркутск","Город Иркутск","25701000"]
[91,"Город Саянск","Город Саянск","25726000"]
[92,"Город Тулун","Город Тулун","25732000"]
[93,"Город Усолье-Сибирское","Город Усолье-Сибирское","25736000"]
[94,"Город Усть-Илимск","Город Усть-Илимск","25738000"]
[95,"Жигаловский муниципальный район","Дальне-Закорское","25606404"]
[96,"Жигаловский муниципальный район","Жигаловский муниципальный район","25606000"]
[97,"Жигаловский муниципальный район","Жигаловское","25606151"]
[98,"Жигаловский муниципальный район","Знаменское","25606407"]
[99,"Жигаловский муниципальный район","Лукиновское","25606419"]
[100,"Жигаловский муниципальный район","Межселенные территории Жигаловского муниципального района, на которых расположены земли следующих населенных пунктов: с Коношаново, д Головское","25606701"]
[101,"Жигаловский муниципальный район","Петровское","25606422"]
[102,"Жигаловский муниципальный район","Рудовское","25606425"]
[103,"Жигаловский муниципальный район","Тимошинское","25606431"]
[104,"Жигаловский муниципальный район","Тутурское","25606434"]
[105,"Жигаловский муниципальный район","Усть-Илгинское","25606437"]
[106,"Жигаловский муниципальный район","Чиканское","25606440"]
[107,"Заларинский муниципальный район","Бабагайское","25608402"]
[108,"Заларинский муниципальный район","Бажирское","25608404"]
[109,"Заларинский муниципальный район","Веренское","25608407"]
[110,"Заларинский муниципальный район","Владимирское","25608410"]
[111,"Заларинский муниципальный район","Заларинский муниципальный район","25608000"]
[112,"Заларинский муниципальный район","Заларинское","25608151"]
[113,"Заларинский муниципальный район","Моисеевское","25608416"]
[114,"Заларинский муниципальный район","Мойганское","25608419"]
[115,"Заларинский муниципальный район","Новочеремховское","25608422"]
[116,"Заларинский муниципальный район","Семеновское","25608425"]
[117,"Заларинский муниципальный район","Троицкое","25608428"]
[118,"Заларинский муниципальный район","Тыретское","25608155"]
[119,"Заларинский муниципальный район","Ханжиновское","25608434"]
[120,"Заларинский муниципальный район","Холмогойское","25608437"]
[121,"Заларинский муниципальный район","Хор-Тагнинское","25608440"]
[122,"Заларинский муниципальный район","Черемшанское","25608443"]
[123,"Зиминский муниципальный район","Батаминское","25610402"]
[124,"Зиминский муниципальный район","Буринское","25610403"]
[125,"Зиминский муниципальный район","Зиминский муниципальный район","25610000"]
[126,"Зиминский муниципальный район","Зулумайское","25610404"]
[127,"Зиминский муниципальный район","Кимильтейское","25610407"]
[128,"Зиминский муниципальный район","Масляногорское","25610413"]
[129,"Зиминский муниципальный район","Покровское","25610419"]
[130,"Зиминский муниципальный район","Услонское","25610422"]
[131,"Зиминский муниципальный район","Ухтуйское","25610425"]
[132,"Зиминский муниципальный район","Филипповское","25610428"]
[133,"Зиминский муниципальный район","Хазанское","25610431"]
[134,"Зиминский муниципальный район","Харайгунское","25610435"]
[135,"Зиминское","Зиминское","25720000"]
[136,"Иркутский муниципальный район","Большереченское","25612155"]
[137,"Иркутский муниципальный район","Голоустненское","25612404"]
[138,"Иркутский муниципальный район","Гороховское","25612407"]
[139,"Иркутский муниципальный район","Дзержинское","25612438"]
[140,"Иркутский муниципальный район","Иркутский муниципальный район","25612000"]
[141,"Иркутский муниципальный район","Карлукское","25612408"]
[142,"Иркутский муниципальный район","Листвянское","25612160"]
[143,"Иркутский муниципальный район","Максимовское","25612410"]
[144,"Иркутский муниципальный район","Мамонское","25612439"]
[145,"Иркутский муниципальный район","Марковское","25612163"]
[146,"Иркутский муниципальный район","Молодежное","25612440"]
[147,"Иркутский муниципальный район","Никольское","25612413"]
[148,"Иркутский муниципальный район","Оекское","25612416"]
[149,"Иркутский муниципальный район","Ревякинское","25612419"]
[150,"Иркутский муниципальный район","Смоленское","25612422"]
[151,"Иркутский муниципальный район","Сосновоборское","25612441"]
[152,"Иркутский муниципальный район","Уриковское","25612425"]
[153,"Иркутский муниципальный район","Усть-Балейское","25612428"]
[154,"Иркутский муниципальный район","Усть-Кудинское","25612442"]
[155,"Иркутский муниципальный район","Ушаковское","25612431"]
[156,"Иркутский муниципальный район","Хомутовское","25612434"]
[157,"Иркутский муниципальный район","Ширяевское","25612437"]
[158,"Казачинско-Ленский муниципальный район","Казаченское","25614404"]
[159,"Казачинско-Ленский муниципальный район","Казачинско-Ленский муниципальный район","25614000"]
[160,"Казачинско-Ленский муниципальный район","Карамское","25614407"]
[161,"Казачинско-Ленский муниципальный район","Ключевское","25614417"]
[162,"Казачинско-Ленский муниципальный район","Кунерминское","25614153"]
[163,"Казачинско-Ленский муниципальный район","Магистральнинское","25614154"]
[164,"Казачинско-Ленский муниципальный район","Мартыновское","25614413"]
[165,"Казачинско-Ленский муниципальный район","Межселенные территории Казачинско-Ленского муниципального района, на которых расположены земли следующих населенных пунктов: д Вершина Ханды","25614701"]
[166,"Казачинско-Ленский муниципальный район","Небельское","25614418"]
[167,"Казачинско-Ленский муниципальный район","Новоселовское","25614416"]
[168,"Казачинско-Ленский муниципальный район","Ульканское","25614158"]
[169,"Катангский муниципальный район","Ербогаченское","25616404"]
[170,"Катангский муниципальный район","Катангский муниципальный район","25616000"]
[171,"Катангский муниципальный район","Непское","25616419"]
[172,"Катангский муниципальный район","Подволошинское","25616425"]
[173,"Катангский муниципальный район","Преображенское","25616428"]
[174,"Качугский муниципальный район","Ангинское","25618402"]
[175,"Качугский муниципальный район","Белоусовское","25618404"]
[176,"Качугский муниципальный район","Бирюльское","25618407"]
[177,"Качугский муниципальный район","Большетарельское","25618410"]
[178,"Качугский муниципальный район","Бутаковское","25618413"]
[179,"Качугский муниципальный район","Верхоленское","25618419"]
[180,"Качугский муниципальный район","Вершино-Тутурское","25618416"]
[181,"Качугский муниципальный район","Залогское","25618422"]
[182,"Качугский муниципальный район","Зареченское","25618425"]
[183,"Качугский муниципальный район","Карлукское","25618428"]
[184,"Качугский муниципальный район","Качугский муниципальный район","25618000"]
[185,"Качугский муниципальный район","Качугское городское поселение","25618151"]
[186,"Качугский муниципальный район","Качугское сельское поселение","25618431"]
[187,"Качугский муниципальный район","Манзурское","25618437"]
[188,"Качугский муниципальный район","Харбатовское","25618443"]
[189,"Киренский муниципальный район","Алексеевское","25620155"]
[190,"Киренский муниципальный район","Алымовское","25620402"]
[191,"Киренский муниципальный район","Киренский муниципальный район","25620000"]
[192,"Киренский муниципальный район","Киренское","25620101"]
[193,"Киренский муниципальный район","Коршуновское","25620419"]
[194,"Киренский муниципальный район","Криволукское","25620425"]
[195,"Киренский муниципальный район","Макаровское","25620431"]
[196,"Киренский муниципальный район","Межселенные территории Киренского муниципального района, на территории которых расположены земли следующих населенных пунктов: с Улькан, с Красноярово, п Визирный","25620701"]
[197,"Киренский муниципальный район","Небельское","25620435"]
[198,"Киренский муниципальный район","Петропавловское","25620437"]
[199,"Киренский муниципальный район","Юбилейнинское","25620453"]
[200,"Куйтунский муниципальный район","Алкинское","25622404"]
[201,"Куйтунский муниципальный район","Андрюшинское","25622410"]
[202,"Куйтунский муниципальный район","Барлукское","25622413"]
[203,"Куйтунский муниципальный район","Большекашелакское","25622416"]
[204,"Куйтунский муниципальный район","Иркутское","25622425"]
[205,"Куйтунский муниципальный район","Каразейское","25622428"]
[206,"Куйтунский муниципальный район","Карымское","25622434"]
[207,"Куйтунский муниципальный район","Куйтунский муниципальный район","25622000"]
[208,"Куйтунский муниципальный район","Куйтунское","25622151"]
[209,"Куйтунский муниципальный район","Кундуйское","25622436"]
[210,"Куйтунский муниципальный район","Ленинское","25622438"]
[211,"Куйтунский муниципальный район","Лермонтовское","25622440"]
[212,"Куйтунский муниципальный район","Мингатуйское","25622443"]
[213,"Куйтунский муниципальный район","Новотельбинское","25622447"]
[214,"Куйтунский муниципальный район","Панагинское","25622462"]
[215,"Куйтунский муниципальный район","Тулюшское","25622449"]
[216,"Куйтунский муниципальный район","Усть-Кадинское","25622452"]
[217,"Куйтунский муниципальный район","Уховское","25622454"]
[218,"Куйтунский муниципальный район","Уянское","25622455"]
[219,"Куйтунский муниципальный район","Харикское","25622458"]
[220,"Куйтунский муниципальный район","Чеботарихинское","25622461"]
[221,"Мамско-Чуйский муниципальный район","Витимское","25624155"]
[222,"Мамско-Чуйский муниципальный район","Горно-Чуйское","25624160"]
[223,"Мамско-Чуйский муниципальный район","Луговское","25624170"]
[224,"Мамско-Чуйский муниципальный район","Мамско-Чуйский муниципальный район","25624000"]
[225,"Мамско-Чуйский муниципальный район","Мамское","25624151"]
[226,"Мамско-Чуйский муниципальный район","Межселенная территория Мамско-Чуйского муниципального района, на территории которой расположены земли населенного пункта с Чуя","25624701"]
[227,"Нижнеилимский муниципальный район","Березняковское","25626402"]
[228,"Нижнеилимский муниципальный район","Брусничное","25626404"]
[229,"Нижнеилимский муниципальный район","Видимское","25626155"]
[230,"Нижнеилимский муниципальный район","Дальнинское","25626406"]
[231,"Нижнеилимский муниципальный район","Железногорск-Илимское городское поселение","25626101"]
[232,"Нижнеилимский муниципальный район","Заморское","25626408"]
[233,"Нижнеилимский муниципальный район","Коршуновское","25626411"]
[234,"Нижнеилимский муниципальный район","Межселенные территории Нижнеилимского муниципального района, на которых расположены земли следующих населенных пунктов: п Заярск, п Миндей 1 и др.","25626701"]
[235,"Нижнеилимский муниципальный район","Нижнеилимский муниципальный район","25626000"]
[236,"Нижнеилимский муниципальный район","Новоигирминское","25626160"]
[237,"Нижнеилимский муниципальный район","Новоилимское","25626412"]
[238,"Нижнеилимский муниципальный район","Радищевское","25626162"]
[239,"Нижнеилимский муниципальный район","Речушинское","25626413"]
[240,"Нижнеилимский муниципальный район","Рудногорское","25626163"]
[241,"Нижнеилимский муниципальный район","Семигорское","25626418"]
[242,"Нижнеилимский муниципальный район","Соцгородокское","25626420"]
[243,"Нижнеилимский муниципальный район","Хребтовское","25626165"]
[244,"Нижнеилимский муниципальный район","Шестаковское","25626170"]
[245,"Нижнеилимский муниципальный район","Янгелевское","25626175"]
[246,"Нижнеудинский муниципальный район","Алзамайcкое","25628105"]
[247,"Нижнеудинский муниципальный район","Атагайское","25628155"]
[248,"Нижнеудинский муниципальный район","Верхнегутарское","25628407"]
[249,"Нижнеудинский муниципальный район","Замзорское","25628410"]
[250,"Нижнеудинский муниципальный район","Заречное","25628411"]
[251,"Нижнеудинский муниципальный район","Иргейское","25628413"]
[252,"Нижнеудинский муниципальный район","Каменское","25628416"]
[253,"Нижнеудинский муниципальный район","Катарбейское","25628419"]
[254,"Нижнеудинский муниципальный район","Катарминское","25628422"]
[255,"Нижнеудинский муниципальный район","Костинское","25628423"]
[256,"Нижнеудинский муниципальный район","Нерхинское","25628424"]
[257,"Нижнеудинский муниципальный район","Нижнеудинский муниципальный район","25628000"]
[258,"Нижнеудинский муниципальный район","Нижнеудинское","25628101"]
[259,"Нижнеудинский муниципальный район","Порогское","25628425"]
[260,"Нижнеудинский муниципальный район","Солонецкое","25628428"]
[261,"Нижнеудинский муниципальный район","Староалзамайское","25628402"]
[262,"Нижнеудинский муниципальный район","Тофаларское","25628431"]
[263,"Нижнеудинский муниципальный район","Уковское","25628160"]
[264,"Нижнеудинский муниципальный район","Усть-Рубахинское","25628434"]
[265,"Нижнеудинский муниципальный район","Худоеланское","25628437"]
[266,"Нижнеудинский муниципальный район","Чеховское","25628440"]
[267,"Нижнеудинский муниципальный район","Шебертинское","25628443"]
[268,"Нижнеудинский муниципальный район","Широковское","25628446"]
[269,"Нижнеудинский муниципальный район","Шумское","25628165"]
[270,"Нукутский муниципальный район","Алтарик","25629402"]
[271,"Нукутский муниципальный район","Закулей","25629404"]
[272,"Нукутский муниципальный район","Новоленино","25629407"]
[273,"Нукутский муниципальный район","Новонукутское","25629410"]
[274,"Нукутский муниципальный район","Нукутский муниципальный район","25629000"]
[275,"Нукутский муниципальный район","Нукуты","25629413"]
[276,"Нукутский муниципальный район","Первомайское","25629416"]
[277,"Нукутский муниципальный район","Хадахан","25629419"]
[278,"Нукутский муниципальный район","Хареты","25629420"]
[279,"Нукутский муниципальный район","Целинный","25629422"]
[280,"Нукутский муниципальный район","Шаратское","25629427"]
[281,"Ольхонский муниципальный район","Бугульдейское","25630402"]
[282,"Ольхонский муниципальный район","Еланцынское","25630404"]
[283,"Ольхонский муниципальный район","Куретское","25630410"]
[284,"Ольхонский муниципальный район","Ольхонский муниципальный район","25630000"]
[285,"Ольхонский муниципальный район","Онгуренское","25630407"]
[286,"Ольхонский муниципальный район","Хужирское","25630420"]
[287,"Ольхонский муниципальный район","Шара-Тоготское","25630413"]
[288,"Осинский муниципальный район","Бильчир","25631404"]
[289,"Осинский муниципальный район","Бурят-Янгуты","25631407"]
[290,"Осинский муниципальный район","Ирхидей","25631417"]
[291,"Осинский муниципальный район","Каха-Онгойское","25631422"]
[292,"Осинский муниципальный район","Майск","25631424"]
[293,"Осинский муниципальный район","Ново-Ленино","25631425"]
[294,"Осинский муниципальный район","Обуса","25631426"]
[295,"Осинский муниципальный район","Оса","25631427"]
[296,"Осинский муниципальный район","Осинский муниципальный район","25631000"]
[297,"Осинский муниципальный район","Поселок Приморский","25631429"]
[298,"Осинский муниципальный район","Русские Янгуты","25631433"]
[299,"Осинский муниципальный район","Улейское","25631440"]
[300,"Осинский муниципальный район","Усть-Алтан","25631445"]
[301,"Свирское","Свирское","25746000"]
[302,"Слюдянский муниципальный район","Байкальское","25634108"]
[303,"Слюдянский муниципальный район","Быстринское","25634402"]
[304,"Слюдянский муниципальный район","Култукское","25634162"]
[305,"Слюдянский муниципальный район","Маритуйское","25634404"]
[306,"Слюдянский муниципальный район","Новоснежнинское","25634408"]
[307,"Слюдянский муниципальный район","Портбайкальское","25634420"]
[308,"Слюдянский муниципальный район","Слюдянский муниципальный район","25634000"]
[309,"Слюдянский муниципальный район","Слюдянское","25634101"]
[310,"Слюдянский муниципальный район","Утуликское","25634407"]
[311,"Тайшетский муниципальный район","Березовское","25636404"]
[312,"Тайшетский муниципальный район","Бирюсинское","25636406"]
[313,"Тайшетский муниципальный район","Бирюсинское городское поселение","25636105"]
[314,"Тайшетский муниципальный район","Борисовское","25636408"]
[315,"Тайшетский муниципальный район","Бузыкановское","25636410"]
[316,"Тайшетский муниципальный район","Венгерское","25636440"]
[317,"Тайшетский муниципальный район","Джогинское","25636413"]
[318,"Тайшетский муниципальный район","Зареченское","25636417"]
[319,"Тайшетский муниципальный район","Квитокское","25636155"]
[320,"Тайшетский муниципальный район","Мирнинское","25636427"]
[321,"Тайшетский муниципальный район","Нижнезаимское","25636431"]
[322,"Тайшетский муниципальный район","Николаевское","25636428"]
[323,"Тайшетский муниципальный район","Новобирюсинское","25636162"]
[324,"Тайшетский муниципальный район","Полинчетское","25636422"]
[325,"Тайшетский муниципальный район","Половино-Черемховское","25636434"]
[326,"Тайшетский муниципальный район","Разгонское","25636465"]
[327,"Тайшетский муниципальный район","Рождественское","25636437"]
[328,"Тайшетский муниципальный район","Соляновское","25636443"]
[329,"Тайшетский муниципальный район","Старо-Акульшетское","25636402"]
[330,"Тайшетский муниципальный район","Тайшетский муниципальный район","25636000"]
[331,"Тайшетский муниципальный район","Тайшетское городское поселение","25636101"]
[332,"Тайшетский муниципальный район","Тальское","25636446"]
[333,"Тайшетский муниципальный район","Тамтачетское","25636466"]
[334,"Тайшетский муниципальный район","Тимирязевское","25636452"]
[335,"Тайшетский муниципальный район","Черчетское","25636455"]
[336,"Тайшетский муниципальный район","Шелаевское","25636458"]
[337,"Тайшетский муниципальный район","Шелеховское","25636461"]
[338,"Тайшетский муниципальный район","Шиткинское","25636174"]
[339,"Тайшетский муниципальный район","Юртинское","25636156"]
[340,"Тулунский муниципальный район","Азейское","25638401"]
[341,"Тулунский муниципальный район","Алгатуйское","25638453"]
[342,"Тулунский муниципальный район","Аршанское","25638454"]
[343,"Тулунский муниципальный район","Афанасьевское","25638440"]
[344,"Тулунский муниципальный район","Будаговское","25638404"]
[345,"Тулунский муниципальный район","Бурхунское","25638407"]
[346,"Тулунский муниципальный район","Владимирское","25638408"]
[347,"Тулунский муниципальный район","Гадалейское","25638410"]
[348,"Тулунский муниципальный район","Гуранское","25638416"]
[349,"Тулунский муниципальный район","Евдокимовское","25638419"]
[350,"Тулунский муниципальный район","Едогонское","25638422"]
[351,"Тулунский муниципальный район","Икейское","25638425"]
[352,"Тулунский муниципальный район","Ишидейское","25638413"]
[353,"Тулунский муниципальный район","Кирейское","25638428"]
[354,"Тулунский муниципальный район","Котикское","25638431"]
[355,"Тулунский муниципальный район","Мугунское","25638437"]
[356,"Тулунский муниципальный район","Нижнебурбукское","25638438"]
[357,"Тулунский муниципальный район","Октябрьское","25638442"]
[358,"Тулунский муниципальный район","Перфиловское","25638443"]
[359,"Тулунский муниципальный район","Писаревское","25638445"]
[360,"Тулунский муниципальный район","Сибирякское","25638444"]
[361,"Тулунский муниципальный район","Тулунский муниципальный район","25638000"]
[362,"Тулунский муниципальный район","Умыганское","25638446"]
[363,"Тулунский муниципальный район","Усть-Кульское","25638449"]
[364,"Тулунский муниципальный район","Шерагульское","25638452"]
[365,"Усольский муниципальный район","Белореченское","25640153"]
[366,"Усольский муниципальный район","Большееланское","25640404"]
[367,"Усольский муниципальный район","Железнодорожное","25640407"]
[368,"Усольский муниципальный район","Мишелевское","25640155"]
[369,"Усольский муниципальный район","Новожилкинское","25640412"]
[370,"Усольский муниципальный район","Новомальтинское","25640414"]
[371,"Усольский муниципальный район","Раздольинское","25640416"]
[372,"Усольский муниципальный район","Сосновское","25640419"]
[373,"Усольский муниципальный район","Среднинское","25640160"]
[374,"Усольский муниципальный район","Тайтурское","25640162"]
[375,"Усольский муниципальный район","Тальянское","25640422"]
[376,"Усольский муниципальный район","Тельминское","25640173"]
[377,"Усольский муниципальный район","Усольский муниципальный район","25640000"]
[378,"Усть-Илимский муниципальный район","Бадарминское","25642401"]
[379,"Усть-Илимский муниципальный район","Ершовское","25642403"]
[380,"Усть-Илимский муниципальный район","Железнодорожное","25642155"]
[381,"Усть-Илимский муниципальный район","Межселенные территории Усть-Илимского муниципального района, расположенные вне границ муниципальных образований Усть-Илимского муниципального района","25642701"]
[382,"Усть-Илимский муниципальный район","Невонское","25642405"]
[383,"Усть-Илимский муниципальный район","Подъеланское","25642404"]
[384,"Усть-Илимский муниципальный район","Седановское","25642407"]
[385,"Усть-Илимский муниципальный район","Тубинское","25642408"]
[386,"Усть-Илимский муниципальный район","Усть-Илимский муниципальный район","25642000"]
[387,"Усть-Илимский муниципальный район","Эдучанское","25642410"]
[388,"Усть-Кутский муниципальный район","Верхнемарковское","25644410"]
[389,"Усть-Кутский муниципальный район","Звезднинское","25644154"]
[390,"Усть-Кутский муниципальный район","Межселенная территория Усть-Кутского муниципального района, на территории которой расположены земли следующих населенных пунктов: с Боярск, с Омолой и др.","25644701"]
[391,"Усть-Кутский муниципальный район","Нийское","25644413"]
[392,"Усть-Кутский муниципальный район","Подымахинское","25644422"]
[393,"Усть-Кутский муниципальный район","Ручейское","25644407"]
[394,"Усть-Кутский муниципальный район","Усть-Кутский муниципальный район","25644000"]
[395,"Усть-Кутский муниципальный район","Усть-Кутское городское поселение","25644101"]
[396,"Усть-Кутский муниципальный район","Янтальское","25644160"]
[397,"Усть-Удинский муниципальный район","Аносовское","25646402"]
[398,"Усть-Удинский муниципальный район","Аталанское","25646404"]
[399,"Усть-Удинский муниципальный район","Балаганкинское","25646407"]
[400,"Усть-Удинский муниципальный район","Игжейское","25646413"]
[401,"Усть-Удинский муниципальный район","Ключинское","25646447"]
[402,"Усть-Удинский муниципальный район","Малышевское","25646422"]
[403,"Усть-Удинский муниципальный район","Молькинское","25646425"]
[404,"Усть-Удинский муниципальный район","Новоудинское","25646428"]
[405,"Усть-Удинский муниципальный район","Подволоченское","25646431"]
[406,"Усть-Удинский муниципальный район","Светлолобовское","25646434"]
[407,"Усть-Удинский муниципальный район","Среднемуйское","25646437"]
[408,"Усть-Удинский муниципальный район","Усть-Удинский муниципальный район","25646000"]
[409,"Усть-Удинский муниципальный район","Усть-Удинское","25646442"]
[410,"Усть-Удинский муниципальный район","Усть-Удинское городское поселение","25646151"]
[411,"Усть-Удинский муниципальный район","Чичковское","25646448"]
[412,"Усть-Удинский муниципальный район","Юголокское","25646446"]
[413,"Черемховский муниципальный район","Алехинское","25648402"]
[414,"Черемховский муниципальный район","Бельское","25648404"]
[415,"Черемховский муниципальный район","Булайское","25648405"]
[416,"Черемховский муниципальный район","Голуметское","25648407"]
[417,"Черемховский муниципальный район","Зерновское","25648410"]
[418,"Черемховский муниципальный район","Каменно-Ангарское","25648412"]
[419,"Черемховский муниципальный район","Лоховское","25648428"]
[420,"Черемховский муниципальный район","Михайловское","25648155"]
[421,"Черемховский муниципальный район","Нижнеиретское","25648416"]
[422,"Черемховский муниципальный район","Новогромовское","25648417"]
[423,"Черемховский муниципальный район","Новостроевское","25648418"]
[424,"Черемховский муниципальный район","Онотское","25648419"]
[425,"Черемховский муниципальный район","Парфеновское","25648422"]
[426,"Черемховский муниципальный район","Саянское","25648425"]
[427,"Черемховский муниципальный район","Тальниковское","25648431"]
[428,"Черемховский муниципальный район","Тунгусское","25648434"]
[429,"Черемховский муниципальный район","Узколугское","25648437"]
[430,"Черемховский муниципальный район","Черемховский муниципальный район","25648000"]
[431,"Черемховский муниципальный район","Черемховское","25648443"]
[432,"Черемховское","Черемховское","25745000"]
[433,"Чунский муниципальный район","Балтуринское","25650402"]
[434,"Чунский муниципальный район","Бунбуйское","25650407"]
[435,"Чунский муниципальный район","Веселовское","25650410"]
[436,"Чунский муниципальный район","Каменское","25650414"]
[437,"Чунский муниципальный район","Лесогорское","25650162"]
[438,"Чунский муниципальный район","Межселенные территории Чунского муниципального района, расположенные вне границ муниципальных образований Чунского муниципального района","25650701"]
[439,"Чунский муниципальный район","Мухинское","25650416"]
[440,"Чунский муниципальный район","Новочунское","25650419"]
[441,"Чунский муниципальный район","Октябрьское","25650165"]
[442,"Чунский муниципальный район","Таргизское","25650422"]
[443,"Чунский муниципальный район","Червянское","25650425"]
[444,"Чунский муниципальный район","Чунский муниципальный район","25650000"]
[445,"Чунский муниципальный район","Чунское","25650151"]
[446,"Шелеховский муниципальный район","Баклашинское","25655402"]
[447,"Шелеховский муниципальный район","Большелугское","25655404"]
[448,"Шелеховский муниципальный район","Большелугское городское поселение","25655153"]
[449,"Шелеховский муниципальный район","Олхинское","25655407"]
[450,"Шелеховский муниципальный район","Подкаменское","25655408"]
[451,"Шелеховский муниципальный район","Шаманское","25655415"]
[452,"Шелеховский муниципальный район","Шелеховский муниципальный район","25655000"]
[453,"Шелеховский муниципальный район","город Шелехов","25655101"]
[454,"Эхирит-Булагатский муниципальный район","Алужинское","25657401"]
[455,"Эхирит-Булагатский муниципальный район","Ахинское","25657402"]
[456,"Эхирит-Булагатский муниципальный район","Гаханское","25657413"]
[457,"Эхирит-Булагатский муниципальный район","Захальское","25657416"]
[458,"Эхирит-Булагатский муниципальный район","Капсальское","25657419"]
[459,"Эхирит-Булагатский муниципальный район","Корсукское","25657420"]
[460,"Эхирит-Булагатский муниципальный район","Кулункунское","25657422"]
[461,"Эхирит-Булагатский муниципальный район","Ново-Николаевское","25657432"]
[462,"Эхирит-Булагатский муниципальный район","Олойское","25657435"]
[463,"Эхирит-Булагатский муниципальный район","Тугутуйское","25657442"]
[464,"Эхирит-Булагатский муниципальный район","Усть-Ордынское","25657444"]
[465,"Эхирит-Булагатский муниципальный район","Харазаргайское","25657447"]
[466,"Эхирит-Булагатский муниципальный район","Харатское","25657448"]
[467,"Эхирит-Булагатский муниципальный район","Эхирит-Булагатский муниципальный район","25657000"]

{"sheet":"REESTR_MO_FILTER","index":52,"n_rows":0,"n_cols":0,"rows_kept":0,"cut":false,"hidden":true,"merged":[]}

{"sheet":"modfrmReestrMR","index":53,"n_rows":0,"n_cols":0,"rows_kept":0,"cut":false,"hidden":true,"merged":[]}

{"sheet":"modServiceModule","index":54,"n_rows":0,"n_cols":0,"rows_kept":0,"cut":false,"hidden":true,"merged":[]}

{"sheet":"modfrmCheckUpdates","index":55,"n_rows":0,"n_cols":0,"rows_kept":0,"cut":false,"hidden":true,"merged":[]}

{"sheet":"REESTR_DS","index":56,"n_rows":3,"n_cols":2,"rows_kept":3,"cut":false,"hidden":true,"merged":[]}
[]
[]
[null,"Город Саянск, Город Саянск (25726000);"]

{"sheet":"REESTR_CHS","index":57,"n_rows":0,"n_cols":0,"rows_kept":0,"cut":false,"hidden":true,"merged":[]}

{"sheet":"REESTR_LINK","index":58,"n_rows":3,"n_cols":3,"rows_kept":3,"cut":false,"hidden":true,"merged":[]}
["ID","LINK_NAME","REGION"]
[4189678,"https://portal.eias.ru/Portal/DownloadPage.aspx?type=12&guid=????????-????-????-????-????????????","ALL"]
[4190415,"https://eias.fstrf.ru/disclo/get_file?p_guid=????????-????-????-????-????????????","ALL"]